Cogmind - Beta 16.1 @@@ ROGUE MODE // 2026.04.30 @ 05:21:49 Player: Thqwib-Linux Result: Escaped! Performance ------------- Evolutions (9) 4500 Regions Visited (34) 6800 Robots Destroyed (305) 1525 Value Destroyed (14784) 14784 Prototype IDs (366) 7320 Alien Tech Used (5) 1000 Bonus (33422) 33422 TOTAL SCORE: 69351 Bonus ------- High Alert Combat Kills 7282 Follower Combat Kills 314 Hunted by Unchained 1000 Registered with UFD 300 Met Optimus in HQ 500 Met Data Miner 300 Met Zhirov 300 MAIN.C Attacked Warlord 500 Warlord Defense Kills 2014 Scanned by Researcher 500 Acquired SGEMP 2000 Delivered SGEMP 2000 Destroyed MAIN.C Guards 500 Met MAIN.C 5000 Destroyed MAIN.C Shell 5000 Zhirov Destroyed MAIN.C 3000 Win 3000 Friendly Fire -88 Cogmind --------- Core Integrity 1382/1600 Matter 264/300 Energy 1509/1520 System Corruption 9% Temperature Cool (8) Movement Walking (126) Location To Epsilon Eridani Parts ------- > --- POWER (2) -------- Hybrid Graviton Reactor Concept Zero-point Core > --- PROPULSION (6) --- Centrium Leg High-density Centrium Leg Experimental Armored Exoskeleton > --- UTILITY (14) ----- Experimental Cooling System Concept Antigrav Storage Unit Spectral Analyzer Experimental Targeting Computer Experimental Core Analyzer Experimental Core Analyzer Improved Armor Integrity Analyzer Concept Recoil Nullifier Advanced Kinecellerator Experimental Weapon Cycler Concept RG22 Armor Concept RG22 Armor Advanced Shield Generator Concept Network Penetrator > --- WEAPON (4) ------- Heavy Machine Gun KE Penetrator KE Penetrator Concept Helical Railcannon > --- INVENTORY (25) --- Light Quantum Reactor Concept Zero-point Core Centrium Leg Centrium Leg Centrium Leg Experimental Armored Exoskeleton Concept NT7 Matterbank (632) Concept Weapon Articulator Concept Weapon Articulator Advanced Weapon Cycler Concept Antimissile System Concept Matter Streamer Helical Railgun Concept Rapid Grenade Launcher Peak State ------------ > --- POWER ------------ Hybrid Graviton Reactor Concept Zero-point Core > --- PROPULSION ------- Experimental VSS Leg Experimental VSS Leg Experimental Armored Exoskeleton > --- UTILITY ---------- 2N-1CE's Frost Array Concept Antigrav Storage Unit Spectral Analyzer Experimental Active Sensor Suite Concept Weapon Articulator Core Analyzer Concept Recoil Nullifier Experimental Kinecellerator Experimental Weapon Cycler Advanced Transmission Jammer Concept RG22 Armor Concept RG22 Armor Experimental Remote Shield > --- WEAPON ----------- Concept XC Strikerail Concept XC Strikerail Concept Helical Railcannon Concept Helical Railcannon > --- INVENTORY -------- Concept Zero-point Core Experimental Armored Exoskeleton Concept NT7 Matterbank Concept Weapon Articulator Concept Antimissile System Concept Network Penetrator Concept Matter Streamer Crosscalibrator Concept XC Strikerail Concept XC Strikerail Concept Miniperforator Concept Miniperforator Concept Helical Railcannon Concept Rapid Grenade Launcher Sigix Broadsword [Rating: 295] Favorites ----------- Power Micro Antimatter Reactor Engine Deuterium Engine Power Core Concept Zero-point Core Reactor Micro Antimatter Reactor Propulsion Improved VTOL Module Treads Light Treads Leg Experimental Armored Exoskeleton Wheel Compact Wheel Hover Unit Concept Gyrokinetic System Flight Unit Improved VTOL Module Utility Makeshift Hacking Suite Device Improved Cooling System Storage Medium Storage Unit Processor Experimental Signal Interpreter Hackware Makeshift Hacking Suite Protection Concept RG22 Armor Artifact Phase Redirector Weapon Assault Rifle Energy Gun Improved Medium Laser Energy Cannon HERF Cannon Ballistic Gun Assault Rifle Ballistic Cannon Concept Miniperforator Launcher Smartbomb Launcher Special Weapon Improved Remote Datajack Impact Weapon Makeshift Hammer Slashing Weapon Power Sword Build | -11 -10 -10 -10 -9 -8 -8 -8 -8 -6 -6 -6 -6 -5 -5 -5 -5 -5 -5 -5 -4 -4 -4 -4 -4 -4 -4 -3 -3 -3 -2 -2 -2 -1 -1 ------- Run | Yrd Mat Min Exi Min Mat Sto Rec Scr Fac Low Low Dat Pro Fac Was Fac Upp Upp War Pro Fac Was Fac Upp Upp Zhi Pro Res Tes Res Qua Frg Acc Com Slots Evolved 18 | . . . . . 4 . . . 4 . . . . 2 . . . . . . 2 . . . . . . 2 . 2 . . 2 . Power . | . . . . . . . . . . . . . . . . . . . . . . . . . . . . . . . . . . . Propulsion 4 | . . . . . 2 . . . 1 . . . . 1 . . . . . . . . . . . . . . . . . . . . Utility 12 | . . . . . 2 . . . 3 . . . . 1 . . . . . . 2 . . . . . . 2 . 2 . . . . Weapon 2 | . . . . . . . . . . . . . . . . . . . . . . . . . . . . . . . . . 2 . Parts Attached 230 | 5 9 . 2 1 27 15 . . 12 . 3 . . 5 2 2 2 2 8 . 11 1 8 . 2 5 3 11 7 4 7 47 5 24 Power 21 | . 1 . . . 5 . . . 1 . 1 . . . . . . . 1 . . . . . 1 1 . 2 . . 1 7 . . Engine 8 | . 1 . . . 4 . . . 1 . 1 . . . . . . . . . . . . . 1 . . . . . . . . . Core 3 | . . . . . 1 . . . . . . . . . . . . . . . . . . . . . . . . . 1 1 . . Reactor 10 | . . . . . . . . . . . . . . . . . . . 1 . . . . . . 1 . 2 . . . 6 . . Propulsion 66 | 4 4 . . . 10 7 . . 5 . . . . 2 . . . . 2 . 1 . 2 . . 3 1 4 . . 1 14 . 6 Treads 14 | 2 1 . . . 6 5 . . . . . . . . . . . . . . . . . . . . . . . . . . . . Leg 9 | . . . . . . . . . . . . . . . . . . . . . . . . . . . . . . . . 3 . 6 Wheel 10 | 2 3 . . . 3 2 . . . . . . . . . . . . . . . . . . . . . . . . . . . . Hover 8 | . . . . . 1 . . . . . . . . . . . . . . . . . . . . . . . . . . 7 . . Flight 25 | . . . . . . . . . 5 . . . . 2 . . . . 2 . 1 . 2 . . 3 1 4 . . 1 4 . . Utility 100 | 1 3 . . . 6 3 . . 6 . 1 . . 2 1 1 1 2 3 . 10 1 4 . 1 1 2 4 5 4 3 18 4 13 Device 41 | 1 . . . . 2 . . . 1 . . . . 1 . . . . 2 . 4 1 1 . 1 . 2 2 2 3 . 10 2 6 Storage 9 | . 2 . . . 2 . . . 1 . . . . . . . . . . . . . 1 . . . . . . . . 3 . . Processor 23 | . . . . . . . . . 4 . . . . . . . . 1 1 . 2 . 1 . . . . 1 2 1 . 2 2 6 Hackware 10 | . . . . . 1 . . . . . 1 . . 1 . 1 . 1 . . 1 . 1 . . . . 1 1 . . . . 1 Protection 16 | . 1 . . . 1 3 . . . . . . . . 1 . 1 . . . 3 . . . . 1 . . . . 2 3 . . Artifact 1 | . . . . . . . . . . . . . . . . . . . . . . . . . . . . . . . 1 . . . Weapon 43 | . 1 . 2 1 6 5 . . . . 1 . . 1 1 1 1 . 2 . . . 2 . . . . 1 2 . 2 8 1 5 Energy Gun 5 | . . . . . 2 1 . . . . . . . . 1 . . . 1 . . . . . . . . . . . . . . . Energy Cannon 3 | . . . . . . . . . . . . . . . . . . . . . . . . . . . . . 2 . 1 . . . Ballistic Gun 15 | . 1 . 1 . 3 2 . . . . . . . . . . . . . . . . . . . . . . . . . 3 1 4 Ballistic Cannon 5 | . . . . . . . . . . . . . . . . . . . . . . . . . . . . . . . . 4 . 1 Launcher 6 | . . . . 1 1 1 . . . . . . . . . 1 1 . . . . . . . . . . . . . . 1 . . Special Weapon 4 | . . . 1 . . . . . . . . . . 1 . . . . 1 . . . . . . . . 1 . . . . . . Impact Weapon 2 | . . . . . . 1 . . . . . . . . . . . . . . . . 1 . . . . . . . . . . . Slashing Weapon 3 | . . . . . . . . . . . 1 . . . . . . . . . . . 1 . . . . . . . 1 . . . Piercing Weapon . | . . . . . . . . . . . . . . . . . . . . . . . . . . . . . . . . . . . Special Melee Weapon . | . . . . . . . . . . . . . . . . . . . . . . . . . . . . . . . . . . . Unidentified Prototypes 33 | . . . 1 . 3 3 . . . . . . . . . 1 . . 5 . . 1 1 . 1 3 2 . 3 1 3 4 1 . Corrupted Parts 1 | . . . . . . . . . . . . . . . . . . . . . . . . . . . . . . . . . 1 . System Corruption 1 | . . . . . . . . . . . . . . . . . . . . . . . . . . . . . . . . . 1 . Parts Lost 35 | . 2 . . . 7 1 . . . . . . . . . . . 1 . . 2 . . . . . . . . . . 7 4 11 Power 3 | . . . . . 1 . . . . . . . . . . . . . . . . . . . . . . . . . . 2 . . Propulsion 5 | . . . . . 3 1 . . . . . . . . . . . . . . . . . . . . . . . . . 1 . . Utility 14 | . 1 . . . 1 . . . . . . . . . . . . 1 . . 1 . . . . . . . . . . 4 2 4 Weapon 13 | . 1 . . . 2 . . . . . . . . . . . . . . . 1 . . . . . . . . . . . 2 7 Highest Loss Streak 7 | . 2 . . . 7 1 . . . . . . . . . . . 1 . . 1 . . . . . . . . . . 3 3 5 To Critical Strikes 1 | . . . . . 1 . . . . . . . . . . . . . . . . . . . . . . . . . . . . . Average Backups 12 | 5 10 14 15 15 15 19 19 19 8 9 9 10 10 9 9 8 9 8 7 7 8 10 8 9 8 8 9 8 7 6 6 11 14 13 Power . | 1 . 1 1 1 . . 1 1 . . . . . . . . . . . . . . . . . . . . . . . . 1 1 Propulsion 2 | 3 4 6 6 6 4 7 7 6 . 1 1 1 1 . 1 1 1 1 . . . 1 . . . . . . . . . 1 1 3 Utility 4 | . 1 3 3 3 2 4 4 4 1 2 3 3 3 3 2 4 5 4 3 3 4 7 6 6 6 6 6 4 4 4 4 4 5 5 Weapon 3 | 1 4 4 4 4 6 5 5 5 3 4 3 4 4 4 4 1 1 1 1 2 1 . . 1 1 1 1 1 1 1 1 5 6 2 Tool/Special . | . . . . . . . . . . . . . . . . . . . . . . . . . . . . . . . . . . . Unused Backups 45 | 4 3 . 2 . 1 5 . 3 3 . . . . . . 4 . . 1 . 1 . 2 . . . . . . 1 1 6 . 8 Power 5 | . 2 . . . . 1 . . . . . . . . . . . . . . . . . . . . . . . . . . . 2 Propulsion 13 | 4 . . . . . 2 . 2 . . . . . . . . . . . . . . . . . . . . . . . 2 . 3 Utility 13 | . 1 . . . 1 1 . 1 . . . . . . . . . . . . 1 . 2 . . . . . . 1 1 2 . 2 Weapon 12 | . . . 2 . . 1 . . 2 . . . . . . 4 . . . . . . . . . . . . . . . 2 . 1 Tool/Special 2 | . . . . . . . . . 1 . . . . . . . . . 1 . . . . . . . . . . . . . . . Average Slot Usage (%) 92 | . 99 100 100 100 96 100 100 100 91 93 93 93 93 90 94 93 92 89 96 94 91 94 93 94 93 95 95 94 94 94 91 85 81 85 Engine 4 | . 14 14 14 14 8 9 9 9 6 6 6 6 6 5 5 5 5 5 2 . . . . . 1 4 5 2 . . . . . . Reactor 2 | . . . . . . . . . . . . . . . . . . . 2 5 5 5 4 5 5 5 5 6 9 8 6 5 3 3 Treads 5 | . 14 14 14 14 15 18 18 18 . . . . . . . . . . . . . . . . . . . . . . . . . . Leg 1 | . . . . . . . . . . . . . . . . . . . . . . . . . . . . . . . . 2 11 10 Wheel 6 | . 14 14 14 14 20 18 18 18 . . . . . . . . . . . . . . . . . . . . . . . . . . Flight 11 | . . . . . . . . . 31 33 33 33 33 31 29 29 29 29 33 35 31 31 31 31 30 30 30 27 27 25 21 7 . . Device 12 | . 4 . . . 8 9 9 9 8 12 13 13 13 5 5 8 6 . 3 5 5 10 5 5 5 10 10 13 12 15 15 24 28 19 Storage 6 | . 14 14 14 14 9 9 9 9 6 6 6 6 6 5 5 5 5 5 5 5 5 5 5 5 5 5 5 4 4 4 4 4 3 3 Processor 10 | . . . . . . . . . 18 20 20 20 20 17 17 17 17 17 19 17 13 15 15 15 15 15 15 17 18 20 20 16 7 15 Hackware 7 | . . . . . 8 9 9 9 6 6 6 6 6 10 11 11 11 11 11 11 15 15 15 15 15 15 15 13 13 12 12 4 . 2 Protection 6 | . 8 14 14 14 6 9 9 9 3 . . . . 3 5 1 3 5 4 5 5 5 9 10 9 5 5 2 4 4 4 3 7 6 Energy Gun 2 | . 4 . . . 6 6 9 9 . . . . . . . . . . 2 . 1 . . . . . . . . . . . . . Ballistic Gun 5 | . 23 28 28 26 10 10 . . . . . . . . . . . . . . . . . . . . . . . . . . 9 11 Impact Weapon 1 | . . . . . . 1 9 9 6 6 2 . . . . . . . . . . . . . . . . . . . . . . . Slashing Weapon 1 | . . . . . . . . . . . 3 6 6 5 5 5 4 5 3 . 3 . 4 4 5 5 5 4 3 4 3 1 . . Peak Build Rating 295 | 7 10 9 18 10 28 35 32 34 60 61 66 65 65 81 81 83 86 83 99 98 106 110 109 110 112 122 124 146 166 165 189 276 295 290 Average Rating 118 | 6 8 9 9 10 23 31 32 32 57 60 63 65 65 75 80 81 82 78 92 98 99 106 99 102 103 116 116 133 148 163 182 222 283 259 On Entrance 87 | 6 7 9 9 10 10 28 32 32 34 60 61 65 65 65 81 80 83 83 82 98 98 106 106 102 102 112 116 116 137 151 164 188 272 282 Avg Prop Armor Cover (%) 9 | 13 12 12 12 12 13 15 17 17 17 . . . . . . . . . . . . . 1 2 2 2 2 2 3 2 . 2 . 2 Naked Turns . | . . . . . . . . . . . . . . . . . . . . . . . . . . . . . . . . . . . Heaviest Build 122 | 12 28 28 28 29 76 77 64 64 64 23 29 25 25 30 32 32 33 31 36 32 35 31 31 29 29 33 29 38 40 36 44 112 122 111 Greatest Support 162 | 16 16 16 16 16 56 32 32 32 32 25 25 25 25 33 33 33 33 33 36 36 36 36 36 41 33 41 44 55 56 53 59 152 152 162 Greatest Overweight (x) 4 | 1 1 1 1 1 2 4 1 1 1 . 1 . . . . . . . 1 . . . . . . . . . . . . 1 . . Average Overweight (x) . | . . 1 1 1 1 1 1 1 . . . . . . . . . . . . . . . . . . . . . . . . . . Largest Inventory Capacity 25 | 8 15 15 15 15 20 20 20 20 20 10 10 10 10 10 10 10 10 10 10 10 10 10 10 10 10 10 10 10 10 10 10 25 25 25 Average Capacity 16 | 8 12 15 15 15 19 20 20 20 10 10 10 10 10 10 10 10 10 10 10 10 10 10 10 10 10 10 10 10 10 10 10 19 25 25 Most Carried 25 | 6 14 15 15 15 20 20 19 20 20 10 10 10 10 10 10 10 10 10 10 7 10 10 10 10 10 10 10 10 10 10 10 25 20 21 Average Carried 14 | 4 10 14 15 15 15 19 19 19 7 9 9 10 10 9 9 9 9 9 7 7 8 10 9 9 9 9 9 9 9 9 9 17 18 16 Final Capacity 25 | 8 15 15 15 15 20 20 20 20 10 10 10 10 10 10 10 10 10 10 10 10 10 10 10 10 10 10 10 10 10 10 10 25 25 25 Final Carried 23 | 5 14 15 15 15 20 19 19 20 9 10 10 10 10 10 10 10 10 9 7 7 10 10 10 10 9 10 10 10 10 9 9 23 18 17 Class Distribution -------------------- 25% | Mutant 13% | Hacker-Ninja 11% | Hacker-Gunner 10% | Scavenger-Mutant 10% | Hacker-Scout 7% | Hacker-Sprinter 4% | Skirmisher 4% | Scout 3% | Gunner Dominant Class ---------------- Mutant | -10/Materials Mutant | -10/Mines Mutant | -10/Exiles Mutant | -9/Mines Scavenger-Mutant | -8/Materials Scavenger-Mutant | -8/Storage Mutant | -8/Recycling Mutant | -8/Scraptown Sprinter | -6/Factory Scout | -6/Lower Caves Scout | -6/Lower Caves Scout | -6/Data Miner Scout | -5/Proximity Caves Hacker-Scout | -5/Factory Hacker-Scout | -5/Waste Hacker-Scout | -5/Factory Hacker-Scout | -5/Upper Caves Hacker-Sprinter | -5/Upper Caves Hacker-Sprinter | -5/Warlord Hacker-Sprinter | -4/Proximity Caves Hacker-Sprinter | -4/Factory Hacker-Scout | -4/Waste Hacker-Scout | -4/Factory Hacker-Scout | -4/Upper Caves Hacker-Scout | -4/Upper Caves Hacker-Ninja | -4/Zhirov Hacker-Ninja | -3/Proximity Caves Hacker-Ninja | -3/Research Hacker-Ninja | -3/Testing Hacker-Ninja | -2/Research Hacker-Ninja | -2/Quarantine Skirmisher | -2/Protoforge Gunner | -1/Access Hacker-Gunner | -1/Command Resources | -11 -10 -10 -10 -9 -8 -8 -8 -8 -6 -6 -6 -6 -5 -5 -5 -5 -5 -5 -5 -4 -4 -4 -4 -4 -4 -4 -3 -3 -3 -2 -2 -2 -1 -1 ----------- Run | Yrd Mat Min Exi Min Mat Sto Rec Scr Fac Low Low Dat Pro Fac Was Fac Upp Upp War Pro Fac Was Fac Upp Upp Zhi Pro Res Tes Res Qua Frg Acc Com Matter Collected 14520 | 257 320 . 17 70 696 602 10 . 140 54 145 . 23 50 . 187 178 107 522 5 200 . 252 204 40 90 82 256 89 171 262 4619 1311 3561 Remotely 4543 | . . . . . . . . . . . . . . . . . . . . . . . . . . . . . . . . 2119 616 1808 Salvage Created 15107 | 100 714 . 17 87 1036 1318 . . 354 . . . . 110 . 548 68 . 510 22 239 . 111 71 . 227 . 311 74 182 433 4318 1280 2977 Parts 656 | 7 41 . . 4 57 70 . . 3 . . . . 3 . 14 4 . 12 7 12 . 10 7 . 2 . 10 6 10 23 215 47 92 Haulers Intercepted 21 | . 2 . . . 6 6 . . 1 . . . . 1 . 3 . . . . 1 . . . . . . . . . . . 1 . Recyclers Shooed 10 | . 3 . . . 1 2 . . 1 . . . . . . . . . . . . . . . . . . 1 . . 1 . 1 . Parts Field Recycled . | . . . . . . . . . . . . . . . . . . . . . . . . . . . . . . . . . . . Retrieved Matter . | . . . . . . . . . . . . . . . . . . . . . . . . . . . . . . . . . . . Parts Self-Destructed 14 | . . . . . . . . . . . . . . . . . 2 . . 7 . . . 5 . . . . . . . . . . Prevented 6 | . . . . . . . . . . 2 . . . . . . . . . 2 . . . . 2 . . . . . . . . . Parts Restored 11 | . . . . . . . . . . . . . . . . . . . . . . . . . . . . . . . . 11 . . Faulty 11 | . . . . . . . . . . . . . . . . . . . . . . . . . . . . . . . . 11 . . Kills | -11 -10 -10 -10 -9 -8 -8 -8 -8 -6 -6 -6 -6 -5 -5 -5 -5 -5 -5 -5 -4 -4 -4 -4 -4 -4 -4 -3 -3 -3 -2 -2 -2 -1 -1 ------- Run | Yrd Mat Min Exi Min Mat Sto Rec Scr Fac Low Low Dat Pro Fac Was Fac Upp Upp War Pro Fac Was Fac Upp Upp Zhi Pro Res Tes Res Qua Frg Acc Com Combat Hostiles Destroyed 216 | . 13 . . 3 18 21 . . . . . . . . . . 8 . 17 5 6 . . 4 . . . . . . 5 70 18 28 Melee 17 | . . . . . . . . . . . . . . . . . . . . . . . . . . . . . . . . 17 . . Guns 71 | . 13 . . . 15 17 . . . . . . . . . . . . . . 6 . . . . . . . . . . 4 5 11 Cannons 44 | . . . . . . . . . . . . . . . . . . . . . . . . . . . . . . . . 29 7 8 AOE 79 | . . . . 3 3 4 . . . . . . . . . . 8 . 17 5 . . . 4 . . . . . . 5 15 6 9 Classes Destroyed 24 | 2 6 . . 1 1 . . . . . . . . . . 1 . . 5 . 1 . . 1 . . . . . . 1 4 1 . Worker 15 | . 1 . . . . . . . . . . . . . . . . . . . . . 2 . . . . 1 2 3 3 1 . 2 Builder 6 | . 1 . . . 1 . . . . . . . . . . . . . . . . . 1 . . . . . . . . 2 1 . Tunneler 3 | 1 . . . . 1 . . . . . . . . . . . . . . . . . . . . . . . . 1 . . . . Hauler 21 | . 2 . . . 6 6 . . 1 . . . . 1 . 3 . . . . 1 . . . . . . . . . . . 1 . Recycler 17 | 1 2 . . . 1 3 . . 2 . . . . . . 1 . . . . . . . . . . . 2 . . 2 . 1 2 Minesweeper 1 | . . . . . . . . . . . . . . . . . . . . . . . . 1 . . . . . . . . . . Mechanic 5 | . . . . . . . . . . . . . . . . . . . 1 . . . 1 . . . . . . . . 1 . 2 Operator 6 | . 2 . . . . . . . . . . . . . . . . . . . . . . . . . . . . . 1 2 . 1 Drone 5 | . . . . . . . . . . . . . . . . . . . . . . . . . . . . . . . . 5 . . Watcher 11 | . . . . . . . . . . . . . . . . 3 . . . . 2 . . . . . . . 1 2 1 1 1 . Swarmer 63 | . 6 . . . 8 8 . . . . . . . . . . 7 . . 5 4 . . 4 . . . . . . 5 4 6 6 Cutter 2 | . . . . . . . . . . . . . . . . . . . . . 2 . . . . . . . . . . . . . Grunt 47 | . 7 . . 2 4 5 . . . . . . . . . . 1 . 8 . . . . . . . . . . . . 6 8 6 Brawler 7 | . . . . 1 . . . . . . . . . . . . . . 2 . . . . . . . . . . . . 2 . 2 Duelist 7 | . . . . . . . . . . . . . . . . . . . 4 . . . . . . . . . . . . 3 . . Protector 4 | . . . . . . . . . . . . . . . . . . . 1 . . . . . . . . . . . . 2 . 1 Researcher 4 | . . . . . . . . . . . . . . . . . . . . . . . . . . . . . . . 1 3 . . Sentry 23 | . . . . . 6 8 . . . . . . . . . . . . . . . . . . . . . . . . . 8 . 1 Specialist 3 | . . . . . . . . . . . . . . . . . . . 1 . . . . . . . . . . . . 2 . . Hunter 12 | . . . . . . . . . . . . . . . . . . . . . . . . . . . . . . . . 5 1 6 Programmer 15 | . . . . . . . . . . . . . . . . . . . . . . . . . . . . . . . . 13 1 1 Q-Series 2 | . . . . . . . . . . . . . . . . . . . . . . . . . . . . . . . . . 2 . M Guard 2 | . . . . . . . . . . . . . . . . . . . . . . . . . . . . . . . . . . 2 Hotshot 3 | . . . . . . . . . . . . . . . . . . . . . . . . . . . . . . . . 3 . . Decapitator 8 | . . . . . . . . . . . . . . . . . . . . . . . . . . . . . . . . 8 . . Immortal 4 | . . . . . . . . . . . . . . . . . . . . . . . . . . . . . . . . 4 . . Combat Programmer 2 | . . . . . . . . . . . . . . . . . . . . . . . . . . . . . . . . . . 2 Striker 1 | . . . . . . . . . . . . . . . . . . . 1 . . . . . . . . . . . . . . . V-Series 5 | . . . . . . . . . . . . . . . . . . . . . . . . . . . . . . . . 5 . . Best Kill Streak 17 | 1 5 . . 3 4 12 . . 2 . . . . 1 . 2 5 . 12 17 5 . 3 5 . . . 3 2 3 12 9 6 8 Combat Bots Only 17 | . 3 . . 3 4 8 . . . . . . . . . . 5 . 12 17 4 . . 4 . . . . . . 5 8 6 7 Max Kills in Single Turn 8 | 1 1 . . 1 2 3 . . 1 . . . . 1 . 1 2 . 2 2 1 . 1 4 . . . 1 1 1 8 3 4 3 Gunslinging 1 | . . . . . . 1 . . . . . . . . . . . . . . . . . . . . . . . . . . 1 . Exploded 4 | . . . . 1 1 3 . . . . . . . . . . 2 . 2 2 . . . 4 . . . . . . 4 3 4 3 Melee 1 | . . . . . . . . . . . . . . . . . . . . . . . . . . . . . . . . 1 . . Uniques/NPCs Destroyed 1 | . . . . . . . . . . . . . . . . . . . . . . . . . . . . . . . . . . 1 MAIN.C Shell (-1/Command) Combat | -11 -10 -10 -10 -9 -8 -8 -8 -8 -6 -6 -6 -6 -5 -5 -5 -5 -5 -5 -5 -4 -4 -4 -4 -4 -4 -4 -3 -3 -3 -2 -2 -2 -1 -1 -------- Run | Yrd Mat Min Exi Min Mat Sto Rec Scr Fac Low Low Dat Pro Fac Was Fac Upp Upp War Pro Fac Was Fac Upp Upp Zhi Pro Res Tes Res Qua Frg Acc Com Hostile Shots Fired 1018 | . 78 . . 11 135 102 . . 9 16 . . . . . . 10 13 . 1 48 1 4 11 1 . 4 6 8 19 2 256 103 180 Missed 339 | . 23 . . 7 31 38 . . 7 9 . . . . . . 5 8 . . 26 1 3 3 1 . 2 4 2 14 2 85 33 35 Intercepted 61 | . . . . . . . . . . . . . . . . . . . . . . . . . . . . . . . . . 28 33 Hits 679 | . 55 . . 4 104 64 . . 2 7 . . . . . . 5 5 . 1 22 . 1 8 . . 2 2 6 5 . 171 70 145 Melee 13 | . . . . . 1 . . . . . . . . . . . . . . . 4 . . 1 . . . . . 1 . 6 . . Projectile 666 | . 55 . . 4 103 64 . . 2 7 . . . . . . 5 5 . 1 18 . 1 7 . . 2 2 6 4 . 165 70 145 AOE 24 | . . . . . . . . . . . . . . . . . . . . . 3 . . . . . . . . 2 . 1 13 5 Critical Strikes 44 | . . . . . 8 2 . . . . . . . . . . . 1 . . 2 . . 1 . . . . 2 . . 20 3 5 Actively Blocked 3 | . . . . . . . . . . . . . . . . . . . . . . . . . . . . . . . . 3 . . Part Disruptions 13 | . . . . . . . . . . . . . . . . 1 . . . . . . . . . . . . . . . 5 . 7 Damage Taken 14423 | . 519 . . 45 1334 785 . . 18 41 . . . . . 156 80 92 . 14 629 . 26 178 . . 18 48 122 244 . 4433 1700 3941 Core 1547 | . 117 . . 12 243 61 . . . . . . . . . 10 12 59 . . 91 . 26 64 . . . . 16 25 . 593 26 192 Absorbed by Shields 348 | . . . . . . . . . . . . . . . . . . . . . . . . . . . . . . . . 307 41 . Redirected to Shielding 324 | . 2 . . 6 46 . . . . . . . . . . . . . . . 65 . . . . . . 13 11 56 . 125 . . Ignored by Resistances 192 | . . . . . 100 92 . . . . . . . . . . . . . . . . . . . . . . . . . . . . Regen/Repaired (Parts) 2455 | . . . . . . . . . 50 . . . . . . . . . 10 . . . 79 . . . . . 41 . . 819 458 998 Core Remaining (%) 77 | 100 . . . 48 . . . 44 . . . . 100 . . . . . . 91 . . . . . . 84 . 98 . . 50 . 86 Volleys Fired 629 | 4 72 1 1 4 79 73 1 . . 5 7 . . 1 . 2 10 . 22 5 28 . . 1 . . 2 3 6 . 5 149 34 114 Largest 4 | 2 2 2 2 1 2 2 1 . . 1 1 . . 1 . 1 1 . 1 1 1 . . 1 . . 1 1 1 . 1 2 4 4 Hottest 204 | 60 60 40 40 30 80 79 56 . . 33 33 . . 7 . 7 46 . 46 46 60 . . 46 . . 46 46 120 . 88 140 140 204 Shots Fired 1202 | 8 143 2 2 4 146 137 1 . . 5 7 . . 1 . 2 10 . 22 5 28 . . 1 . . 2 3 6 . 5 215 66 381 Gun 777 | 8 143 2 2 . 135 134 1 . . . . . . . . . . . . . 17 . . . . . . . . . . 30 19 286 Cannon 300 | . . . . . . . . . . . . . . . . . . . . . . . . . . . . . 4 . 3 157 45 91 Launcher 113 | . . . . 4 8 3 . . . 5 7 . . . . . 10 . 22 5 9 . . 1 . . 2 1 . . 2 28 2 4 Special 12 | . . . . . 3 . . . . . . . . 1 . 2 . . . . 2 . . . . . . 2 2 . . . . . Kinetic 845 | 4 105 2 2 . 61 85 . . . . . . . . . . . . . . . . . . . . . . . . . 145 64 377 Thermal 170 | 4 38 . . . 74 49 1 . . . . . . . . . . . . . . . . . . . . . 4 . . . . . Explosive 113 | . . . . 4 8 3 . . . 5 7 . . . . . 10 . 22 5 9 . . 1 . . 2 1 . . 2 28 2 4 Electromagnetic 45 | . . . . . . . . . . . . . . . . . . . . . . . . . . . . . . . 3 42 . . Entropic 17 | . . . . . . . . . . . . . . . . . . . . . 17 . . . . . . . . . . . . . Robot Hit Streak 46 | 3 16 1 3 3 11 20 21 . . . . . . 22 . 1 . . . . 4 . . . . . . 1 3 . . 29 37 46 Robot Miss Streak 7 | 1 4 1 . 1 4 6 . . . . . . . . . 1 . . . . 7 . . . . . . 1 . . . 7 3 2 Penetration Max 2 | . . . . . . . . . . . . . . . . . . . . . . . . . . . . . . . . 2 1 1 Secondary Targets 11 | . 3 . . . 2 2 . . . . . . . . . . . . . . . . . . . . . . . . . . 4 . Max Gunslinging Chain 2 | . 1 . . . 1 1 . . . . . . . . . . . . . . . . . . . . . . . . . . 2 . Shots Hit Robots 922 | 5 93 1 2 3 102 100 1 . 4 . . . . 5 . 25 . . . . 26 . 4 3 . 6 4 6 8 6 3 152 48 315 Core Hits 708 | 2 36 . 1 6 48 48 . . . . . . . 1 . 7 13 . 56 3 10 . 1 5 . 1 . 3 2 4 14 206 53 188 Critical Kills 48 | . 1 . . . . 1 . . . . . . . . . . . . . . . . . . . . . . . . . 28 8 10 Critical Parts Destroyed 73 | . 1 . . . . . . . 1 . . . . . . . . . . . . . . . . . . . . . . 38 12 21 Critical Strikes 156 | . 2 . . . . 4 . . 1 . . . . 1 . 1 . . . . . . . . . . . . . . . 75 22 50 Burn 3 | . . . . . . 3 . . . . . . . . . . . . . . . . . . . . . . . . . . . . Destroy 150 | . 2 . . . . 1 . . . . . . . . . . . . . . . . . . . . . . . . . 75 22 50 Smash 1 | . . . . . . . . . 1 . . . . . . . . . . . . . . . . . . . . . . . . . Sever 2 | . . . . . . . . . . . . . . 1 . 1 . . . . . . . . . . . . . . . . . . Melee Attacks 232 | . . . . . . 3 . . 13 . . . . 11 . 29 2 1 1 . 18 . 12 3 2 6 8 17 16 24 15 51 . . Impact 16 | . . . . . . 3 . . 13 . . . . . . . . . . . . . . . . . . . . . . . . . Slashing 216 | . . . . . . . . . . . . . . 11 . 29 2 1 1 . 18 . 12 3 2 6 8 17 16 24 15 51 . . Piercing . | . . . . . . . . . . . . . . . . . . . . . . . . . . . . . . . . . . . Sneak Attacks 36 | . . . . . . . . . 3 . . . . 1 . 8 . . . . 2 . 4 1 . . . 4 3 4 1 5 . . Combat Hostiles . | . . . . . . . . . . . . . . . . . . . . . . . . . . . . . . . . . . . Follow-up Attacks . | . . . . . . . . . . . . . . . . . . . . . . . . . . . . . . . . . . . Damage Inflicted 44843 | 68 1190 15 25 248 1480 1847 18 . 374 . . . . 259 . 1494 1113 . 5124 666 1160 . 347 548 . 553 343 423 428 492 1250 10568 3032 11778 Guns 12743 | 68 1190 15 25 . 1163 1558 18 . . . . . . . . . . . . . 511 . . . . . . . . . . 945 635 6615 Cannons 8545 | . . . . . . . . . . . . . . . . . . . . . . . . . . . . . . . . 3430 1587 3528 Explosions 14389 | . . . . 248 317 289 . . . . . . . . . . 1113 . 5124 666 . . . 374 . . . . . . 848 3109 666 1635 Melee 9022 | . . . . . . . . . 374 . . . . 259 . 1494 . . . . 649 . 347 174 . 553 343 423 428 492 402 3084 . . Ramming 144 | . . . . . . . . . . . . . . . . . . . . . . . . . . . . . . . . . 144 . Kinetic 18580 | 45 872 15 25 . 586 896 . . . . . . . . . . . . . . . . . . . . . . . . . 3776 2222 10143 Thermal 1598 | 23 318 . . . 577 662 18 . . . . . . . . . . . . . . . . . . . . . . . . . . . Explosive 14389 | . . . . 248 317 289 . . . . . . . . . . 1113 . 5124 666 . . . 374 . . . . . . 848 3109 666 1635 Electromagnetic 599 | . . . . . . . . . . . . . . . . . . . . . . . . . . . . . . . . 599 . . Impact 374 | . . . . . . . . . 374 . . . . . . . . . . . . . . . . . . . . . . . . . Slashing 8648 | . . . . . . . . . . . . . . 259 . 1494 . . . . 649 . 347 174 . 553 343 423 428 492 402 3084 . . Piercing . | . . . . . . . . . . . . . . . . . . . . . . . . . . . . . . . . . . . Entropic 511 | . . . . . . . . . . . . . . . . . . . . . 511 . . . . . . . . . . . . . Highest Corruption 9 | . . . . . 1 1 1 . . . . . . . . 3 3 3 3 . . . . . . . . . 2 . . 7 1 9 Average Corruption 3 | . . . . . 1 1 1 . . . . . . . . 3 3 3 3 . . . . . . . . . 2 . . 5 1 6 Corruption Purged . | . . . . . . . . . . . . . . . . . . . . . . . . . . . . . . . . . . . Corruption Blocked . | . . . . . . . . . . . . . . . . . . . . . . . . . . . . . . . . . . . Effects 134 | . . . . . 7 8 3 . . . . . . . . 8 4 2 . . . . . . . . . . . . . 51 1 50 Message Errors 36 | . . . . . . 3 1 . . . . . . . . 2 2 1 . . . . . . . . . . . . . 16 1 10 Matter Fused 30 | . . . . . 1 1 . . . . . . . . . 4 . . . . . . . . . . . . . . . 11 . 13 Heat Flow Errors 19 | . . . . . . 2 . . . . . . . . . 2 2 . . . . . . . . . . . . . . 6 . 7 Energy Discharges 10 | . . . . . 1 . . . . . . . . . . . . . . . . . . . . . . . . . . 3 . 6 Parts Rejected 3 | . . . . . 2 . . . . . . . . . . . . . . . . . . . . . . . . . . 1 . . Data Loss (minor) 21 | . . . . . 3 1 2 . . . . . . . . . . 1 . . . . . . . . . . . . . 8 . 6 Data Loss (major) 3 | . . . . . . 1 . . . . . . . . . . . . . . . . . . . . . . . . . 1 . 1 Misfires 6 | . . . . . . . . . . . . . . . . . . . . . . . . . . . . . . . . 3 . 3 Weapon Failures 6 | . . . . . . . . . . . . . . . . . . . . . . . . . . . . . . . . 2 . 4 Overload Shots . | . . . . . . . . . . . . . . . . . . . . . . . . . . . . . . . . . . . Overflow Damage 2939 | . . . . . 66 15 . . 191 . . . . 11 . 141 78 . 52 146 84 . 150 59 . 411 42 13 134 114 217 811 197 7 Projectiles 122 | . . . . . . . . . . . . . . . . . . . . . . . . . . . . . . . . 37 85 . Explosions 467 | . . . . . 66 15 . . . . . . . . . . 78 . 52 146 . . . . . . . . . . 2 26 75 7 Melee 2350 | . . . . . . . . . 191 . . . . 11 . 141 . . . . 84 . 150 59 . 411 42 13 134 114 215 748 37 . Knockbacks 55 | . . . . . . . . . 1 . . . . . . . . . . . . . . . . . . . . . . 21 18 15 Impact 2 | . . . . . . . . . 1 . . . . . . . . . . . . . . . . . . . . . . . 1 . Kinetic 51 | . . . . . . . . . . . . . . . . . . . . . . . . . . . . . . . . 20 17 14 Secondary 2 | . . . . . . . . . . . . . . . . . . . . . . . . . . . . . . . . 1 . 1 Self-Inflicted Damage 326 | . . . . . 22 . . . . 16 . . . . . . . . . . . . . . . . . . . . . 230 . 58 Shots 8 | . . . . . 1 . . . . 1 . . . . . . . . . . . . . . . . . . . . . 5 . 1 Rammed . | . . . . . . . . . . . . . . . . . . . . . . . . . . . . . . . . . . . Targets Rammed 4 | . . . . . . . . . . . . . . . . . . . . . . . . . . . . . . . . . 4 . Kicked 4 | . . . . . . . . . . . . . . . . . . . . . . . . . . . . . . . . . 4 . Crushed . | . . . . . . . . . . . . . . . . . . . . . . . . . . . . . . . . . . . Highest Temperature 452 | . 72 . . 1 11 243 . . . . . . . 22 3 267 356 3 3 . 103 . 17 185 130 76 66 20 128 107 . 452 . 402 Average Temperature 50 | . 33 . . 1 7 97 . . . . . . . 9 2 109 113 2 2 . 47 . 6 56 56 32 41 6 18 64 . 151 . 103 Received Heat Transfer 2595 | . 180 . . 24 504 360 . . 6 . . . . . . . 9 9 . . 45 . 9 33 . . . . . 18 . 936 129 333 Effects 1 | . . . . . . . . . . . . . . . . . . . . . . . . . . . . . . . . . . 1 Short Circuit 1 | . . . . . . . . . . . . . . . . . . . . . . . . . . . . . . . . . . 1 Siege Activations . | . . . . . . . . . . . . . . . . . . . . . . . . . . . . . . . . . . . Martial Activations . | . . . . . . . . . . . . . . . . . . . . . . . . . . . . . . . . . . . Shielding Activations . | . . . . . . . . . . . . . . . . . . . . . . . . . . . . . . . . . . . Robots Disrupted . | . . . . . . . . . . . . . . . . . . . . . . . . . . . . . . . . . . . Combat Hostiles . | . . . . . . . . . . . . . . . . . . . . . . . . . . . . . . . . . . . Robots Corrupted 9 | . . . . . . . . . 3 . . . . . . . . . . . . . . . . . . . . . . 5 1 . Combat Hostiles 4 | . . . . . . . . . . . . . . . . . . . . . . . . . . . . . . . . 4 . . Parts Fried 14 | . . . . . . . . . 3 . . . . . . . . . . . . . . . . . . . . . . 10 1 . Impact Corruptions 7 | . . . . . . . . . 5 . . . . . . . . . . . . . . . . . . . . . . . 2 . Robots Melted . | . . . . . . . . . . . . . . . . . . . . . . . . . . . . . . . . . . . Combat Hostiles . | . . . . . . . . . . . . . . . . . . . . . . . . . . . . . . . . . . . Parts Melted 8 | . . . . . 4 3 . . . . . . . . . . . . 1 . . . . . . . . . . . . . . . Heat Transferred 3752 | 50 700 . . . 1300 1665 37 . . . . . . . . . . . . . . . . . . . . . . . . . . . Parts Sabotaged . | . . . . . . . . . . . . . . . . . . . . . . . . . . . . . . . . . . . Parts Stolen . | . . . . . . . . . . . . . . . . . . . . . . . . . . . . . . . . . . . Parts Stripped . | . . . . . . . . . . . . . . . . . . . . . . . . . . . . . . . . . . . Power Chain Reactions . | . . . . . . . . . . . . . . . . . . . . . . . . . . . . . . . . . . . Alert | -11 -10 -10 -10 -9 -8 -8 -8 -8 -6 -6 -6 -6 -5 -5 -5 -5 -5 -5 -5 -4 -4 -4 -4 -4 -4 -4 -3 -3 -3 -2 -2 -2 -1 -1 ------- Run | Yrd Mat Min Exi Min Mat Sto Rec Scr Fac Low Low Dat Pro Fac Was Fac Upp Upp War Pro Fac Was Fac Upp Upp Zhi Pro Res Tes Res Qua Frg Acc Com Maximum Alert Level 5 | . . . . . 1 2 1 . . . . . . . . . . . . . 1 . . . . . . . . . 1 5 5 5 Low Security (%) 53 | 100 100 100 . 100 36 11 99 . 100 . . . . 100 100 100 . . . . 66 100 100 . . . . 100 100 100 58 . . 51 Level 1 14 | . . . . . 63 65 . . . . . . . . . . . . . . 33 . . . . . . . . . 41 8 . . Level 2 2 | . . . . . . 22 . . . . . . . . . . . . . . . . . . . . . . . . . 5 . . Level 3 9 | . . . . . . . . . . . . . . . . . . . . . . . . . . . . . . . . 44 . . Level 4 6 | . . . . . . . . . . . . . . . . . . . . . . . . . . . . . . . . 11 46 13 Level 5 13 | . . . . . . . . . . . . . . . . . . . . . . . . . . . . . . . . 29 53 34 High Security . | . . . . . . . . . . . . . . . . . . . . . . . . . . . . . . . . . . . Max Security . | . . . . . . . . . . . . . . . . . . . . . . . . . . . . . . . . . . . Peak Influence 2247 | 5 156 58 . 97 366 440 206 . 56 . . . . 40 24 106 . . . . 241 100 55 . . . . 24 53 102 352 2230 2247 2090 Initial 1432 | . . 58 . . . 141 161 . . . . . . . . . . . . . 44 85 42 . . . . . 2 1 57 192 1337 1432 Average 556 | 1 40 16 . 34 215 335 161 . 13 . . . . 8 4 32 . . . . 126 84 14 . . . . 4 10 39 135 1162 1701 1783 Influence Increases 10486 | 10 507 . . 117 907 664 218 . 140 60 . . . 97 34 204 185 150 360 110 380 15 96 155 . 10 45 76 208 231 509 2782 1188 1028 Destroy 0b10 Robot/C 4480 | . 260 . . 60 540 420 . . . . . . . . . . 160 . 320 100 120 . . 80 . . . . 60 . 120 1320 380 540 Destroy 0b10 Robot/NC 510 | 10 40 . . . 65 45 . . 15 . . . . 5 . 35 . . 10 . 15 . 20 5 . 10 . 15 15 30 35 70 25 45 Destroy Leader 680 | . 54 . . 10 156 112 . . 2 . . . . 2 . 12 10 . . 10 26 . . 10 . . . . 2 4 12 122 56 80 Allied During Kill 102 | . . . . . 61 7 . . . . . . . . . . . . . . . . . . . . . . . . . . 34 . Trap Triggered on 0b10 30 | . . . . . . . . . 30 . . . . . . . . . . . . . . . . . . . . . . . . . Successful Hack 405 | . 17 . . . 21 4 8 . 40 . . . . 16 . 76 . . . . . . 45 . . . . 17 45 23 56 28 . 9 Select Force Hacks 270 | . 60 . . . . . 210 . . . . . . . . . . . . . . . . . . . . . . . . . . . Disable Machine 630 | . . . . . 30 30 . . . . . . . . . . . . . . . . . . . . . . 45 . 60 345 60 60 Destroy Structure 1254 | . 1 . . 17 19 31 . . 8 . . . . 14 34 6 . . . . 84 . 16 . . . . 44 26 54 96 267 243 294 Partial Spotted 300 | . . . . . . 15 . . 15 . . . . 30 . 15 . . . . . 15 15 . . . . . 15 105 30 45 . . Lose Combat Pursuer 1125 | . 75 . . 30 15 . . . 30 60 . . . 30 . 60 15 150 30 . 135 . . 60 . . 45 . . 15 . 285 90 . Active Sensor Use 600 | . . . . . . . . . . . . . . . . . . . . . . . . . . . . . . . . 300 300 . Miscellaneous 100 | . . . . . . . . . . . . . . . . . . . . . . . . . . . . . . . 100 . . . Influence Decreases 8516 | 10 357 150 . 117 572 584 516 117 112 88 . . . 97 34 116 124 89 264 346 206 199 145 41 95 40 45 71 210 132 269 894 1179 1297 Entered New Map 3410 | . . 92 . . . 194 254 117 . 11 . . . . . . 34 29 210 306 26 159 18 5 25 30 . . 3 2 45 150 893 807 Time Decay 4240 | 10 200 58 . 117 462 350 262 . 102 77 . . . 43 . 116 80 50 54 40 160 20 127 36 70 10 45 71 120 130 130 674 246 380 Lost Part 350 | . 20 . . . 70 10 . . . . . . . . . . . 10 . . 20 . . . . . . . . . . 70 40 110 Lost Ally 192 | . . . . . 40 30 . . 10 . . . . 5 34 . 10 . . . . 20 . . . . . . 34 . 9 . . . Purge Threat 324 | . 137 . . . . . . . . . . . . 49 . . . . . . . . . . . . . . 53 . 85 . . . Squads Dispatched 71 | . 3 . . . 7 1 . . 2 . . . . 1 . 3 . 1 . . 4 . 1 . . . . 3 6 4 2 15 10 8 Investigation 18 | . 2 . . . 2 . . . 1 . . . . 1 . 1 . . . . 1 . . . . . . 1 . 1 . 4 3 1 Extermination 22 | . . . . . . . . . 1 . . . . . . 1 . . . . 1 . 1 . . . . 2 3 2 1 6 2 2 Reinforcement 15 | . 1 . . . 2 1 . . . . . . . . . 1 . . . . 2 . . . . . . . 2 1 1 2 2 . Assault 10 | . . . . . . . . . . . . . . . . . . 1 . . . . . . . . . . 1 . . 3 . 5 Garrison 6 | . . . . . 3 . . . . . . . . . . . . . . . . . . . . . . . . . . . 3 . Intercept . | . . . . . . . . . . . . . . . . . . . . . . . . . . . . . . . . . . . Searches Triggered . | . . . . . . . . . . . . . . . . . . . . . . . . . . . . . . . . . . . Unchained Authorized 1 | . . . . . . . . . . . . . . . . . . . . . . . . . . . . . . . . . 1 . Data Miner Redirects 3 | . . . . . . . . . . . . . . . . . . . . . . . . . . . . . . . . 1 . 2 Construction Impeded . | . . . . . . . . . . . . . . . . . . . . . . . . . . . . . . . . . . . Haulers Reinforced 2 | . . . . . . . . . . . . . . . . 1 . . . . . . . . . . . . . . . . 1 . Active Scanning Responses 6 | . . . . . . . . . . . . . . . . . . . . . . . . . . . . . . . . 3 3 . Cargo Convoy Interrupts . | . . . . . . . . . . . . . . . . . . . . . . . . . . . . . . . . . . . Stealth | -11 -10 -10 -10 -9 -8 -8 -8 -8 -6 -6 -6 -6 -5 -5 -5 -5 -5 -5 -5 -4 -4 -4 -4 -4 -4 -4 -3 -3 -3 -2 -2 -2 -1 -1 --------- Run | Yrd Mat Min Exi Min Mat Sto Rec Scr Fac Low Low Dat Pro Fac Was Fac Upp Upp War Pro Fac Was Fac Upp Upp Zhi Pro Res Tes Res Qua Frg Acc Com Distress Signals 15 | . 2 . . . 3 1 . . 2 . . . . 1 . . 1 . 2 . . . . . . . . . . 1 . . 2 . Communications Jammed 67 | . . . . . . . . . . . . . . . . . . . . . . . . . . . . 2 . 20 . 26 . 19 Distress Signals 67 | . . . . . . . . . . . . . . . . . . . . . . . . . . . . 2 . 20 . 26 . 19 Times Spotted 426 | . 32 . . 5 42 28 . . 6 4 . . . 5 4 11 5 9 34 3 23 6 9 4 2 . 3 4 7 27 6 85 20 42 Peak Tracking Total 16 | . 5 . . 3 10 6 . . 2 4 . . . 3 4 5 4 13 10 3 8 6 5 4 2 . 2 4 3 16 2 10 7 8 Tactical Retreats 38 | . 3 . . 1 1 . . . 2 2 . . . 1 . 1 1 3 1 . 4 . . 2 . . 2 . . 1 . 9 4 . Traps | -11 -10 -10 -10 -9 -8 -8 -8 -8 -6 -6 -6 -6 -5 -5 -5 -5 -5 -5 -5 -4 -4 -4 -4 -4 -4 -4 -3 -3 -3 -2 -2 -2 -1 -1 ------- Run | Yrd Mat Min Exi Min Mat Sto Rec Scr Fac Low Low Dat Pro Fac Was Fac Upp Upp War Pro Fac Was Fac Upp Upp Zhi Pro Res Tes Res Qua Frg Acc Com Traps Triggered 28 | . . . . . 1 . . . 1 . . . . 3 . 1 . . . . 3 . 1 . . . . . . 3 1 8 . 6 Indirectly . | . . . . . . . . . . . . . . . . . . . . . . . . . . . . . . . . . . . Trap Hack Attempts . | . . . . . . . . . . . . . . . . . . . . . . . . . . . . . . . . . . . Triggered . | . . . . . . . . . . . . . . . . . . . . . . . . . . . . . . . . . . . Disarmed . | . . . . . . . . . . . . . . . . . . . . . . . . . . . . . . . . . . . Reprogrammed 6 | . . . . . . . . . 6 . . . . . . . . . . . . . . . . . . . . . . . . . Reused 3 | . . . . . . . . . 3 . . . . . . . . . . . . . . . . . . . . . . . . . Traps Extracted . | . . . . . . . . . . . . . . . . . . . . . . . . . . . . . . . . . . . Installed . | . . . . . . . . . . . . . . . . . . . . . . . . . . . . . . . . . . . Triggered 3 | . . . . . . . . . 3 . . . . . . . . . . . . . . . . . . . . . . . . . Machines | -11 -10 -10 -10 -9 -8 -8 -8 -8 -6 -6 -6 -6 -5 -5 -5 -5 -5 -5 -5 -4 -4 -4 -4 -4 -4 -4 -3 -3 -3 -2 -2 -2 -1 -1 ---------- Run | Yrd Mat Min Exi Min Mat Sto Rec Scr Fac Low Low Dat Pro Fac Was Fac Upp Upp War Pro Fac Was Fac Upp Upp Zhi Pro Res Tes Res Qua Frg Acc Com Machines Disabled 55 | . . . . . 2 2 . . . . . . . . . . . . . . . . . . . . . . 3 . 4 34 4 6 Max in Single Turn 2 | . . . . . . 1 . . . . . . . . . . . . . . . . . . . . . . 1 . 1 2 1 1 Garrison Access 4 | . . . . . . . . . . . . . . . . 1 . . . . . . 1 . . . . . . . 1 1 . . Machines Repaired . | . . . . . . . . . . . . . . . . . . . . . . . . . . . . . . . . . . . Machines Dismantled . | . . . . . . . . . . . . . . . . . . . . . . . . . . . . . . . . . . . Machines Sabotaged . | . . . . . . . . . . . . . . . . . . . . . . . . . . . . . . . . . . . Overloaded Fab Kills . | . . . . . . . . . . . . . . . . . . . . . . . . . . . . . . . . . . . Hacking | -11 -10 -10 -10 -9 -8 -8 -8 -8 -6 -6 -6 -6 -5 -5 -5 -5 -5 -5 -5 -4 -4 -4 -4 -4 -4 -4 -3 -3 -3 -2 -2 -2 -1 -1 --------- Run | Yrd Mat Min Exi Min Mat Sto Rec Scr Fac Low Low Dat Pro Fac Was Fac Upp Upp War Pro Fac Was Fac Upp Upp Zhi Pro Res Tes Res Qua Frg Acc Com Machines Accessed 123 | . 9 . 1 . 6 3 12 4 7 . . 4 . 5 . 13 . . 2 . 2 . 9 . 2 3 . 6 11 4 9 6 . 5 Terminals 67 | . 7 . . . 3 2 5 . 5 . . . . 4 . 8 . . . . 1 . 3 . . . . 2 7 2 8 5 . 5 Fabricators 9 | . . . . . . . . . 1 . . . . . . 2 . . . . 1 . 1 . . . . 2 1 1 . . . . Repair Stations 8 | . . . . . 1 . . . 1 . . . . . . 1 . . . . . . 2 . . . . . 2 1 . . . . Recycling Units 12 | . 2 . . . . 1 7 . . . . . . . . . . . . . . . 2 . . . . . . . . . . . Scanalyzers 6 | . . . . . 1 . . . . . . . . 1 . 1 . . . . . . . . . . . 2 1 . . . . . Garrison Access 5 | . . . . . 1 . . . . . . . . . . 1 . . . . . . 1 . . . . . . . 1 1 . . Total Hacks 325 | . 21 . 1 . 15 6 19 9 24 . . 32 . 12 . 28 . . 6 . 9 . 34 . 2 13 . 20 25 11 20 11 . 7 Successful 207 | . 11 . 1 . 8 2 16 9 15 . . 32 . 7 . 15 . . 6 . 4 . 22 . 2 13 . 11 12 4 9 6 . 2 Failed 114 | . 9 . . . 6 4 3 . 9 . . . . 4 . 12 . . . . 5 . 12 . . . . 9 13 7 11 5 . 5 Catastrophic 10 | . 1 . . . 2 . 1 . . . . . . . . 2 . . . . . . . . . . . . 1 . 1 1 . 1 Database Lockouts 4 | . 1 . . . 1 . . . . . . . . 1 . 1 . . . . . . . . . . . . . . . . . . Manual 113 | . 15 . 1 . 7 7 11 . 7 . . . . 3 . 9 . . 1 . 6 . 7 . . . . 6 10 5 7 6 . 5 Terminals 177 | . 18 . . . 8 5 12 . 17 . . . . 9 . 19 . . . . 6 . 15 . . . . 9 17 6 19 10 . 7 Fabricators 24 | . . . . . . . . . 2 . . . . . . 4 . . . . 3 . 2 . . . . 8 2 3 . . . . Repair Stations 23 | . . . . . 3 . . . 5 . . . . . . 2 . . . . . . 6 . . . . . 5 2 . . . . Recycling Units 20 | . 3 . . . . 1 7 . . . . . . . . . . . . . . . 9 . . . . . . . . . . . Scanalyzers 11 | . . . . . 2 . . . . . . . . 3 . 2 . . . . . . . . . . . 3 1 . . . . . Garrison Access 7 | . . . . . 2 . . . . . . . . . . 1 . . . . . . 2 . . . . . . . 1 1 . . Terminal Hacks 128 | . 6 . 1 . 1 . 7 9 9 . . 32 . 4 . 6 . . 6 . 1 . 8 . 2 13 . 3 5 2 7 4 . 2 Record 24 | . . . 1 . . . . 9 . . . 11 . . . . . . . . . . . . . 1 . . 1 . 1 . . . Part Schematic 22 | . . . . . . . . . 2 . . 13 . . . 1 . . . . . . 1 . . 4 . 1 . . . . . . Robot Schematic 5 | . . . . . . . . . . . . 5 . . . . . . . . . . . . . . . . . . . . . . Robot Analysis 9 | . . . . . . . 1 . 1 . . . . . . 1 . . . . . . 2 . . 4 . . . . . . . . Prototype ID Bank 25 | . 2 . . . . . 5 . 3 . . 3 . 1 . . . . 5 . . . 1 . . 4 . . 1 . . . . . Open Door 4 | . . . . . . . . . . . . . . . . . . . 1 . . . . . 2 . . . . . . . . 1 Branch Access Points 7 | . . . . . 1 . . . 1 . . . . 1 . 1 . . . . . . 1 . . . . 1 . 1 . . . . Terminal Index 1 | . . . . . . . . . . . . . . . . . . . . . . . . . . . . . . . . . . 1 Fabricator Index 1 | . . . . . . . . . . . . . . . . . . . . . . . 1 . . . . . . . . . . . Alert Level 9 | . 2 . . . . . 1 . 1 . . . . . . 2 . . . . . . 1 . . . . . . . 1 1 . . Unreport Threat 5 | . 1 . . . . . . . . . . . . 1 . . . . . . . . . . . . . . 1 . 2 . . . Locate Traps 1 | . . . . . . . . . . . . . . . . . . . . . . . . . . . . . . . . 1 . . Reprogram Traps 1 | . . . . . . . . . 1 . . . . . . . . . . . . . . . . . . . . . . . . . Hauler Manifests 1 | . . . . . . . . . . . . . . . . . . . . . . . . . . . . . 1 . . . . . Zone Layout 12 | . 1 . . . . . . . . . . . . 1 . 1 . . . . 1 . 1 . . . . 1 1 1 3 1 . . Proto ID Catalog 1 | . . . . . . . . . . . . . . . . . . . . . . . . . . . . . . . . 1 . . Fabricator Hacks 11 | . . . . . . . . . . . . . . . . 2 . . . . 1 . 2 . . . . 4 1 1 . . . . Network Status 1 | . . . . . . . . . . . . . . . . . . . . . . . . . . . . 1 . . . . . . Load Schematic 6 | . . . . . . . . . . . . . . . . 1 . . . . 1 . 1 . . . . 2 . 1 . . . . Build 4 | . . . . . . . . . . . . . . . . 1 . . . . . . 1 . . . . 1 1 . . . . . Repair Station Hacks 14 | . . . . . 3 . . . 4 . . . . . . 1 . . . . . . 4 . . . . . 2 . . . . . Scan Component 8 | . . . . . 2 . . . 2 . . . . . . 1 . . . . . . 2 . . . . . 1 . . . . . Repair 6 | . . . . . 1 . . . 2 . . . . . . . . . . . . . 2 . . . . . 1 . . . . . Recycling Unit Hacks 5 | . . . . . . . . . . . . . . . . . . . . . . . 5 . . . . . . . . . . . Recycle Component 1 | . . . . . . . . . . . . . . . . . . . . . . . 1 . . . . . . . . . . . Process 1 | . . . . . . . . . . . . . . . . . . . . . . . 1 . . . . . . . . . . . Report Inventory 1 | . . . . . . . . . . . . . . . . . . . . . . . 1 . . . . . . . . . . . Retrieve Matter 1 | . . . . . . . . . . . . . . . . . . . . . . . 1 . . . . . . . . . . . Retrieve Components 1 | . . . . . . . . . . . . . . . . . . . . . . . 1 . . . . . . . . . . . Scanalyzer 5 | . . . . . 1 . . . . . . . . 1 . 1 . . . . . . . . . . . 1 1 . . . . . Insert Component 1 | . . . . . . . . . . . . . . . . . . . . . . . . . . . . 1 . . . . . . Retrieve Study 4 | . . . . . 1 . . . . . . . . 1 . 1 . . . . . . . . . . . . 1 . . . . . Garrison Access Hacks 4 | . . . . . . . . . . . . . . . . 1 . . . . . . 1 . . . . . . . 1 1 . . Seal Access 4 | . . . . . . . . . . . . . . . . 1 . . . . . . 1 . . . . . . . 1 1 . . Unauthorized Hacks 40 | . 5 . . . 3 2 9 . 2 . . . . 2 . 4 . . . . 2 . 2 . . . . 3 3 1 1 1 . . Terminals 24 | . 3 . . . 3 1 2 . 2 . . . . 2 . 3 . . . . 1 . 1 . . . . 1 3 . 1 1 . . Assimilate 7 | . . . . . 1 . . . 1 . . . . 1 . 1 . . . . . . . . . . . . 1 . 1 1 . . Botnet 17 | . 3 . . . 2 1 2 . 1 . . . . 1 . 2 . . . . 1 . 1 . . . . 1 2 . . . . . Fabricators 5 | . . . . . . . . . . . . . . . . 1 . . . . 1 . . . . . . 2 . 1 . . . . Prioritize 1 | . . . . . . . . . . . . . . . . . . . . . . . . . . . . 1 . . . . . . Recompile 4 | . . . . . . . . . . . . . . . . 1 . . . . 1 . . . . . . 1 . 1 . . . . Repair Stations . | . . . . . . . . . . . . . . . . . . . . . . . . . . . . . . . . . . . Recycling Units 11 | . 2 . . . . 1 7 . . . . . . . . . . . . . . . 1 . . . . . . . . . . . Reject 2 | . . . . . . 1 . . . . . . . . . . . . . . . . 1 . . . . . . . . . . . Tunnel 9 | . 2 . . . . . 7 . . . . . . . . . . . . . . . . . . . . . . . . . . . Scanalyzers . | . . . . . . . . . . . . . . . . . . . . . . . . . . . . . . . . . . . Garrison Access . | . . . . . . . . . . . . . . . . . . . . . . . . . . . . . . . . . . . Data Cores Recovered 3 | . 1 . . . . . . . . . . . . . . . . . . . . . . . . . . . . . . 1 . 1 Used . | . . . . . . . . . . . . . . . . . . . . . . . . . . . . . . . . . . . Hacking Detections 76 | . 5 . . . 5 3 5 . 6 . . . . 4 . 11 . . . . 2 . 3 . . . . 4 10 4 7 4 . 3 Full Trace Events 1 | . . . . . 1 . . . . . . . . . . . . . . . . . . . . . . . . . . . . . Feedback Events . | . . . . . . . . . . . . . . . . . . . . . . . . . . . . . . . . . . . Feedback Blocked . | . . . . . . . . . . . . . . . . . . . . . . . . . . . . . . . . . . . Robot Schematics Acquired 5 | . . . . . . . . . . . . 5 . . . . . . . . . . . . . . . . . . . . . . Robots Built . | . . . . . . . . . . . . . . . . . . . . . . . . . . . . . . . . . . . Authchips . | . . . . . . . . . . . . . . . . . . . . . . . . . . . . . . . . . . . Time . | . . . . . . . . . . . . . . . . . . . . . . . . . . . . . . . . . . . Total Robot Build Rating . | . . . . . . . . . . . . . . . . . . . . . . . . . . . . . . . . . . . Part Schematics Acquired 31 | . . . . . . . . . 2 . . 13 . . . 1 . . . . . . 1 . . 4 . 1 . . 2 7 . . Parts Built 7 | . . . . . . . . . . . . . . . . 2 . . . . . . 1 . . . . 2 2 . . . . . Authchips 4 | . . . . . . . . . . . . . . . . 1 . . . . . . 1 . . . . 1 1 . . . . . Time 253 | . . . . . . . . . . . . . . . . 47 . . . . . . 102 . . . . 58 46 . . . . . Total Part Build Rating 50 | . . . . . . . . . . . . . . . . 10 . . . . . . 8 . . . . 14 18 . . . . . Part Studies Acquired 4 | . . . . . 1 . . . . . . . . 1 . 1 . . . . . . . . . . . . 1 . . . . . Parts Repaired 6 | . . . . . 1 . . . 2 . . . . . . . . . . . . . 2 . . . . . 1 . . . . . Time 242 | . . . . . 64 . . . 76 . . . . . . . . . . . . . 78 . . . . . 24 . . . . . Parts Recycled 1 | . . . . . . . . . . . . . . . . . . . . . . . 1 . . . . . . . . . . . Recycled Matter 70 | . . . . . . . . . . . . . . . . . . . . . . . 70 . . . . . . . . . . . Retrieved Matter 70 | . . . . . . . . . . . . . . . . . . . . . . . 70 . . . . . . . . . . . Retrieved Components 1 | . . . . . . . . . . . . . . . . . . . . . . . 1 . . . . . . . . . . . Parts Scanalyzed . | . . . . . . . . . . . . . . . . . . . . . . . . . . . . . . . . . . . Part Schematics Acquired . | . . . . . . . . . . . . . . . . . . . . . . . . . . . . . . . . . . . Parts Damaged . | . . . . . . . . . . . . . . . . . . . . . . . . . . . . . . . . . . . Bothacking | -11 -10 -10 -10 -9 -8 -8 -8 -8 -6 -6 -6 -6 -5 -5 -5 -5 -5 -5 -5 -4 -4 -4 -4 -4 -4 -4 -3 -3 -3 -2 -2 -2 -1 -1 ------------ Run | Yrd Mat Min Exi Min Mat Sto Rec Scr Fac Low Low Dat Pro Fac Was Fac Upp Upp War Pro Fac Was Fac Upp Upp Zhi Pro Res Tes Res Qua Frg Acc Com Used RIF Installer . | . . . . . . . . . . . . . . . . . . . . . . . . . . . . . . . . . . . Robots Hacked 4 | . . . . . . . . . . . . . . 1 . 1 . . . . 2 . . . . . . . . . . . . . Non-combat 4 | . . . . . . . . . . . . . . 1 . 1 . . . . 2 . . . . . . . . . . . . . Combat . | . . . . . . . . . . . . . . . . . . . . . . . . . . . . . . . . . . . Robot Hacks Applied 4 | . . . . . . . . . . . . . . 1 . 1 . . . . 2 . . . . . . . . . . . . . find_chute 2 | . . . . . . . . . . . . . . 1 . . . . . . 1 . . . . . . . . . . . . . find_fabricator 1 | . . . . . . . . . . . . . . . . . . . . . 1 . . . . . . . . . . . . . find_recycling 1 | . . . . . . . . . . . . . . . . 1 . . . . . . . . . . . . . . . . . . Relay Couplers Released . | . . . . . . . . . . . . . . . . . . . . . . . . . . . . . . . . . . . Fabnet Peak Effective % . | . . . . . . . . . . . . . . . . . . . . . . . . . . . . . . . . . . . Robots Rewired . | . . . . . . . . . . . . . . . . . . . . . . . . . . . . . . . . . . . Allies Hacked . | . . . . . . . . . . . . . . . . . . . . . . . . . . . . . . . . . . . Hacks Repelled . | . . . . . . . . . . . . . . . . . . . . . . . . . . . . . . . . . . . Allies | -11 -10 -10 -10 -9 -8 -8 -8 -8 -6 -6 -6 -6 -5 -5 -5 -5 -5 -5 -5 -4 -4 -4 -4 -4 -4 -4 -3 -3 -3 -2 -2 -2 -1 -1 -------- Run | Yrd Mat Min Exi Min Mat Sto Rec Scr Fac Low Low Dat Pro Fac Was Fac Upp Upp War Pro Fac Was Fac Upp Upp Zhi Pro Res Tes Res Qua Frg Acc Com Total Allies 39 | . . 2 . . 4 . . . 1 . . . . 1 19 1 . . . . . 1 . . . . . . 3 . 1 . 3 3 Largest Group 19 | . . 2 2 . 3 2 . . 1 . . . . 1 19 1 1 . . . . 1 . . . . . . 3 . 1 . 3 . Highest-Rated Group 684 | . . 40 40 . 62 47 . . 26 . . . . 26 684 26 26 . . . . 46 . . . . . . 208 . 26 . 379 . Highest-Rated Ally 135 | . . 31 31 . 26 26 . . 26 . . . . 26 50 26 26 . . . . 46 . . . . . . 99 . 26 . 135 . Initial UFD Resources 36 | . . . . . . . . . 23 23 23 23 25 25 25 25 25 25 25 27 27 27 27 27 27 27 31 31 31 33 33 33 36 36 Total Orders 2 | . . . . . . . . . . . . . . . . . . . . . . . . . . . . . 2 . . . . . STAY 1 | . . . . . . . . . . . . . . . . . . . . . . . . . . . . . 1 . . . . . FOLLOW 1 | . . . . . . . . . . . . . . . . . . . . . . . . . . . . . 1 . . . . . Ally Attacks 158 | . . . . . 44 1 . . . . . . . . 81 . . . . . . 5 . . . . . . 18 . . . 6 3 Total Damage 5777 | . . . . . 890 . . . . . . . . . 3702 . . . . . . 138 . . . . . . 763 . . . 220 64 Kills 27 | . . . . . 13 . . . . . . . . . 9 . . . . . . . . . . . . . 3 . . . 2 . Allies Corrupted 2 | . . . . . . . . . . . . . . . . . . . . . . . . . . . . . 2 . . . . . Allies Melted . | . . . . . . . . . . . . . . . . . . . . . . . . . . . . . . . . . . . Field Lobotomies 5 | . . . . . 3 . . . . . . . . . . . . . . . . . . . . . . . 2 . . . . . Intel | -11 -10 -10 -10 -9 -8 -8 -8 -8 -6 -6 -6 -6 -5 -5 -5 -5 -5 -5 -5 -4 -4 -4 -4 -4 -4 -4 -3 -3 -3 -2 -2 -2 -1 -1 ------- Run | Yrd Mat Min Exi Min Mat Sto Rec Scr Fac Low Low Dat Pro Fac Was Fac Upp Upp War Pro Fac Was Fac Upp Upp Zhi Pro Res Tes Res Qua Frg Acc Com Active Infowar (turns) 10295 | 10 277 . . . . . . . 561 174 152 22 165 144 53 407 171 117 478 83 225 43 400 88 141 67 224 325 407 276 297 2635 528 1825 Optics 10008 | . . . . . . . . . 561 174 152 22 165 144 53 407 171 117 478 83 225 43 400 88 141 67 224 325 407 276 297 2635 528 1825 Sensors 5002 | . . . . . . . . . 208 153 152 22 165 144 53 398 165 1 . . 3 41 400 76 139 64 224 325 393 178 289 1322 86 1 A.S.S. 1338 | . . . . . . . . . . . . . . . . . . . . . . . . . . . . . . . . 958 380 . IFF 2 | . . . . . . . . . . . . . . . . . . . . . 2 . . . . . . . . . . . . . Seismic 287 | 10 277 . . . . . . . . . . . . . . . . . . . . . . . . . . . . . . . . . Cloaking 1647 | . . . . . . . . . . . . . . . . . . . . . 5 . . . 22 67 221 190 166 252 107 617 . . Jamming 5386 | . . . . . . . . . . . . . . . . . . . . . . . . . . . . 325 407 250 295 2635 528 946 Robot Analysis Total 9 | . . . . . . . 1 . 1 . . . . . . 1 . . . . . . 2 . . 4 . . . . . . . . Derelict Logs Recovered 12 | . . 2 . 1 . . . . . 1 2 . . . . . 2 2 . 1 . . . . 1 . . . . . . . . . Drone Launches . | . . . . . . . . . . . . . . . . . . . . . . . . . . . . . . . . . . . Drone Recoveries . | . . . . . . . . . . . . . . . . . . . . . . . . . . . . . . . . . . . Exploration | -11 -10 -10 -10 -9 -8 -8 -8 -8 -6 -6 -6 -6 -5 -5 -5 -5 -5 -5 -5 -4 -4 -4 -4 -4 -4 -4 -3 -3 -3 -2 -2 -2 -1 -1 ------------- Run | Yrd Mat Min Exi Min Mat Sto Rec Scr Fac Low Low Dat Pro Fac Was Fac Upp Upp War Pro Fac Was Fac Upp Upp Zhi Pro Res Tes Res Qua Frg Acc Com Turns Passed 15781 | 49 911 241 250 292 1243 789 561 1320 575 174 152 22 165 144 53 407 171 117 478 83 328 43 400 88 141 67 224 325 407 276 297 2635 528 1825 Spaces Moved 20962 | 28 576 195 201 245 708 411 533 1252 811 343 414 90 525 363 179 963 463 408 841 330 842 153 552 328 489 161 571 639 993 766 736 3234 400 1219 Core . | . . . . . . . . . . . . . . . . . . . . . . . . . . . . . . . . . . . Treads . | . . . . . . . . . . . . . . . . . . . . . . . . . . . . . . . . . . . Legs 2184 | . . . . . . . . . . . . . . . . . . . . . . . . . . . . . . . . 565 400 1219 Wheels 4153 | 28 576 195 201 245 708 411 533 1252 4 . . . . . . . . . . . . . . . . . . . . . . . . . Hover 1024 | . . . . . . . . . . . . . . . . . . . . . . . . . . . . . . . . 1024 . . Flight 13601 | . . . . . . . . . 807 343 414 90 525 363 179 963 463 408 841 330 842 153 552 328 489 161 571 639 993 766 736 1645 . . Fastest Speed 5 | 95 100 115 115 115 95 105 105 105 24 24 24 24 24 21 25 25 25 25 20 20 19 20 20 15 21 20 12 5 5 6 5 11 100 100 Average Speed 50 | 98 114 115 115 115 116 115 105 105 24 24 25 24 24 23 25 25 25 25 23 20 20 20 22 20 21 22 24 22 19 20 22 46 100 117 Slowest Speed 150 | 100 115 115 115 115 120 150 105 105 105 24 94 24 24 25 25 25 25 25 92 20 23 20 23 21 23 23 25 25 23 23 24 140 100 130 Overloaded Moves 401 | . . . . . . . . . . . . . . . . . . . . . . . . 41 . . 13 11 22 66 52 196 . . Propulsion Burnouts . | . . . . . . . . . . . . . . . . . . . . . . . . . . . . . . . . . . . Robots Hopped 80 | . . . . . . . . . 14 . . . . 2 . 3 . . 2 . 8 2 4 2 . . . 1 14 13 4 11 . . Potential Cave-ins 6 | . . . . . . . . . . . . . . . . . . . . . 6 . . . . . . . . . . . . . Cave-ins Triggered . | . . . . . . . . . . . . . . . . . . . . . . . . . . . . . . . . . . . Teleports 1 | . . . . . . . . . . . . . . . . . . . . . . . . . . . . . . 1 . . . . Exploration Rate (%) 53 | 4 73 37 60 58 62 63 88 86 17 57 61 75 66 10 88 33 67 66 86 59 21 82 16 50 65 61 68 15 77 23 70 54 18 35 Regions Visited 34 Branch Regions 22 Pre-discovered Areas 12 | . 2 . 1 . . . 7 . . . 1 1 . . . . . . . . . . . . . . . . . . . . . . Known Exits Taken 22 | . . . . . 1 . . . 1 1 1 1 1 . . 1 1 1 1 1 . . 1 1 1 1 1 1 1 1 1 1 1 . Unknown Exits Taken 8 | 1 1 1 1 1 . 1 1 1 . . . . . . . . . . . . . . . . . . . . . . . . . . Scrap Searched 23 | . . . . . . . . 4 . 2 2 . 1 . . . 3 3 . 2 . . . 1 2 . 3 . . . . . . . Spaces Dug 338 | . . . . . 14 7 . . 8 19 69 . . 7 . 3 2 1 1 . 84 . 8 . 2 . 4 30 11 18 10 17 14 9 Terrain Destroyed 1293 | . . . . 17 19 27 . . 8 47 80 . . 7 . 3 108 1 102 72 188 . 8 16 2 . 50 30 11 18 44 165 91 179 Melee 97 | . . . . . . . . . 8 . . . . 7 . 3 2 1 1 . 3 . 8 . 2 . 4 11 7 18 10 12 . . Projectile 198 | . . . . . . . . . . . . . . . . . . . . . 12 . . . . . . . 4 . . 12 35 135 AOE 977 | . . . . 17 19 27 . . . 47 80 . . . . . 106 . 101 72 173 . . 16 . . 46 19 . . 34 133 45 42 Terrain Rammed . | . . . . . . . . . . . . . . . . . . . . . . . . . . . . . . . . . . . Walls Destroyed . | . . . . . . . . . . . . . . . . . . . . . . . . . . . . . . . . . . . Machines Disabled . | . . . . . . . . . . . . . . . . . . . . . . . . . . . . . . . . . . . Actions | -11 -10 -10 -10 -9 -8 -8 -8 -8 -6 -6 -6 -6 -5 -5 -5 -5 -5 -5 -5 -4 -4 -4 -4 -4 -4 -4 -3 -3 -3 -2 -2 -2 -1 -1 --------- Run | Yrd Mat Min Exi Min Mat Sto Rec Scr Fac Low Low Dat Pro Fac Was Fac Upp Upp War Pro Fac Was Fac Upp Upp Zhi Pro Res Tes Res Qua Frg Acc Com Total 24728 | 39 686 209 217 250 976 580 533 1258 1164 428 454 89 563 399 186 1083 505 420 1097 341 936 163 803 341 521 181 638 794 1153 832 824 4112 489 1464 Wait 2005 | . 6 13 . . 107 44 . . 322 74 25 . 39 13 2 72 7 9 205 7 16 9 216 1 25 . 43 107 120 36 37 406 8 36 Move 20777 | 27 575 194 200 244 707 410 532 1251 782 342 413 89 524 359 178 956 462 407 836 329 826 149 543 323 488 160 570 636 966 741 727 3214 399 1218 Hop 72 | . . . . . . . . . 14 . . . . 2 . 3 . . 2 . 8 1 4 2 . . . 1 12 11 4 8 . . Pick Up 156 | 1 13 1 . . 19 10 . 4 5 1 . . . 1 1 6 3 . 1 . 6 1 6 3 . 1 . 2 3 5 2 46 5 10 Fast Attach 108 | 1 2 . . . 8 1 . . 1 . 1 . . 6 . 3 4 1 6 . 14 . 3 1 2 1 3 2 4 2 5 20 4 13 Attach 141 | . 1 . . . 12 . . . 9 2 2 . . 2 . 1 5 1 3 . 6 . 1 2 2 1 2 5 5 3 1 45 10 20 Detach 105 | . 1 . . . 6 . . . 2 2 2 . . 1 . . 2 1 6 . 6 . 1 . 1 1 2 3 3 . 1 38 6 20 Swap 248 | 4 8 . 2 2 21 25 . . 4 2 2 . . 1 3 2 3 . 7 . 4 2 10 2 . 8 5 10 13 6 14 51 17 20 Drop 197 | 2 8 . . . 17 14 . 3 12 . 2 . . 2 2 9 7 . 8 . 4 1 7 3 1 3 3 8 5 4 9 49 2 12 Fire 629 | 4 72 1 1 4 79 73 1 . . 5 7 . . 1 . 2 10 . 22 5 28 . . 1 . . 2 3 6 . 5 149 34 114 Melee 232 | . . . . . . 3 . . 13 . . . . 11 . 29 2 1 1 . 18 . 12 3 2 6 8 17 16 24 15 51 . . Ram . | . . . . . . . . . . . . . . . . . . . . . . . . . . . . . . . . . . . Kick 4 | . . . . . . . . . . . . . . . . . . . . . . . . . . . . . . . . . 4 . Crush . | . . . . . . . . . . . . . . . . . . . . . . . . . . . . . . . . . . . Escape Stasis 39 | . . . . . . . . . . . . . . . . . . . . . . . . . . . . . . . 4 35 . . Rewire 15 | . . . 14 . . . . . . . . . . . . . . . . . . . . . . . . . . . . . . 1 Trap . | . . . . . . . . . . . . . . . . . . . . . . . . . . . . . . . . . . . Miscellaneous . | . . . . . . . . . . . . . . . . . . . . . . . . . . . . . . . . . . . Route ------- -11/Scrapyard -10/Materials (discovered 3 exits: [*Mat] / [*Min x2]) -10/Mines -10/Exiles -9/Mines -8/Materials (discovered 3 exits: [*Fac x2] / *Sto) -8/Storage -8/Recycling (discovered 2 exits: *Fac / *Scr) -8/Scraptown (discovered 2 exits: *Fac x2) -6/Factory (discovered 4 exits: *Low x2 / Ext x2) -6/Lower Caves -6/Lower Caves -6/Data Miner -5/Proximity Caves -5/Factory (discovered 2 exits: Upp x2) -5/Waste -5/Factory (discovered 3 exits: *Fac / *Upp x2) -5/Upper Caves -5/Upper Caves (discovered 2 exits: *Fac / *War) -5/Warlord -4/Proximity Caves -4/Factory -4/Waste -4/Factory (discovered 4 exits: *Res / *Upp x2 / Arm) -4/Upper Caves -4/Upper Caves (discovered 2 exits: Res / *Zhi) -4/Zhirov -3/Proximity Caves -3/Research (discovered 2 exits: *Tes x2) -3/Testing -2/Research (discovered 3 exits: *Acc / *Qua x2) -2/Quarantine (discovered 2 exits: [*Sec] / *Frg) -2/Protoforge -1/Access (discovered 2 exits: Sur / *Com) -1/Command (discovered 2 exits: *Sur x2) To Epsilon Eridani History --------- Turn | Location | Event 10 | -11/Scrapyard | Discovered new exit (range 3) 50 | -11/Scrapyard | Entered Materials 98 | -10/Materials | Discovered new exit (range 4) 313 | -10/Materials | Build established: Mutant 509 | -10/Materials | Central database locked down 545 | -10/Materials | Discovered new exit (range 11) 718 | -10/Materials | Discovered new exit (range 12) 961 | -10/Materials | Entered Mines 980 | -10/Mines | Learned Materials security intel 1052 | -10/Mines | Learned Materials garrison access intel 1062 | -10/Mines | A weapon hastily lodged in a ceiling crevice suddenly fell to the ground 1183 | -10/Mines | Deemed a non-threat by the Exiles lab entrance 1184 | -10/Mines | Discovered new exit (range 5) 1202 | -10/Mines | Entered Exiles 1202 | -10/Exiles | Found Exiles lab destroyed 1202 | -10/Exiles | Accompanied by 2 allies 1232 | -10/Exiles | Led the pair of lost Derelicts to a safe place 1337 | -10/Exiles | Opened EX-Vault 1340 | -10/Exiles | Found Prototype Special Weapon 1340 | -10/Exiles | Identified Field Lobotomy Kit 1410 | -10/Exiles | Learned location of Zion (-7) 1443 | -10/Exiles | Discovered new exit (range 10) 1452 | -10/Exiles | Entered Mines 1550 | -9/Mines | Core integrity fell below 50% 1623 | -9/Mines | Learned Materials security intel 1675 | -9/Mines | Assembled infested the area 1680 | -9/Mines | Assisted by a Guerilla fighting off Assembled 1737 | -9/Mines | Discovered new exit (range 6) 1744 | -9/Mines | Entered Materials 1744 | -8/Materials | Evolved 4 slots: Propulsion x2, Utility x2 1746 | -8/Materials | Loaded intel: 1 garrison access location 1829 | -8/Materials | Garrison activated, responded to threat 1876 | -8/Materials | Assimilated L-31 Rogue with FLK Orb 1879 | -8/Materials | Assimilated Y-45 Defender with FLK Orb 1882 | -8/Materials | Assimilated H-55 Commando with FLK Orb 1921 | -8/Materials | Lost 7 parts (1p3n1u2w) 2144 | -8/Materials | Discovered new exit (range 16) 2151 | -8/Materials | Build established: Scavenger-Mutant 2164 | -8/Materials | Central database locked down 2408 | -8/Materials | Discovered new exit (range 4) 2494 | -8/Materials | Discovered new exit (range 5) 2625 | -8/Materials | Repaired Broken Imp. Assault Rifle 2868 | -8/Materials | Identified exit to Storage 2987 | -8/Materials | Entered Storage 2987 | -8/Storage | Accompanied by 2 allies 3132 | -8/Storage | Destroyed 8 combat bots 3497 | -8/Storage | Core integrity fell below 50% 3771 | -8/Storage | Used back door to open Recycling access 3771 | -8/Storage | Discovered new exit (range 5) 3776 | -8/Storage | Entered Recycling 4027 | -8/Recycling | Build established: Mutant 4120 | -8/Recycling | Discovered new exit (range 9) 4309 | -8/Recycling | Scanned before Scraplab entrance 4324 | -8/Recycling | Entered Scraplab 4333 | -8/Recycling | Discovered new exit (range 4) 4337 | -8/Recycling | Entered Scraptown 4337 | -8/Scraptown | System corruption cleaned by C-Scrubber 4546 | -8/Scraptown | Discovered new exit (range 7) 4644 | -8/Scraptown | Visited Assassins FH 4688 | -8/Scraptown | Heard Great Nut preacher, LISTEN AND RECITE! 4692 | -8/Scraptown | Visited Cyclists 4887 | -8/Scraptown | Visited Fellowship of the Rings 4904 | -8/Scraptown | Visited UFD Registry 4904 | -8/Scraptown | Registered with UFD as "Gunkit" 4923 | -8/Scraptown | Visited Comm Corps 4988 | -8/Scraptown | Entered Cyclist Reading Room 5062 | -8/Scraptown | Visited Curators Association 5079 | -8/Scraptown | Visited Chapter 10 5120 | -8/Scraptown | Visited Infowarlord's Domain 5129 | -8/Scraptown | Found Exp. Signal Interpreter 5148 | -8/Scraptown | Visited Modified Component R&D 5316 | -8/Scraptown | Visited Derelict Rescue Squad 5346 | -8/Scraptown | Visited Observation Area 5437 | -8/Scraptown | Visited Science Guys 5452 | -8/Scraptown | Visited Junk Repository 5592 | -8/Scraptown | Met Optimus 5592 | -8/Scraptown | Accepted into 0bPrime 5654 | -8/Scraptown | Discovered new exit (range 3) 5657 | -8/Scraptown | Entered Factory 5657 | -6/Factory | Evolved 4 slots: Propulsion x1, Utility x3 5684 | -6/Factory | Identified exit to Lower Caves 5684 | -6/Factory | Identified exit to Extension 5734 | -6/Factory | Repaired Rocket Launcher 5779 | -6/Factory | Repaired Imp. Cooling System 5952 | -6/Factory | Build established: Sprinter 6232 | -6/Factory | Entered Lower Caves 6241 | -6/Lower Caves | Learned 4 Factory zone layouts 6247 | -6/Lower Caves | Spotted B-75 Beast 6382 | -6/Lower Caves | Build established: Scout 6396 | -6/Lower Caves | Encountered a Warlord checkpoint 6404 | -6/Lower Caves | Discovered new exit (range 4) 6405 | -6/Lower Caves | Identified exit to Lower Caves 6406 | -6/Lower Caves | Entered another Lower Caves area 6457 | -6/Lower Caves | Found DCF Scrap (14 items) 6502 | -6/Lower Caves | Learned Factory interactive machine intel 6554 | -6/Lower Caves | Discovered new exit (range 4) 6554 | -6/Lower Caves | Identified exit to Data Miner 6558 | -6/Lower Caves | Entered Data Miner 6558 | -6/Data Miner | Discovered new exit (range 6) 6562 | -6/Data Miner | Met Data Miner 6567 | -6/Data Miner | Learned location of Section 7 (-2) 6567 | -6/Data Miner | Acquired the access code to Warlord's prototype stash 6572 | -6/Data Miner | Received God Mode back door access code from Data Miner 6580 | -6/Data Miner | Identified exit to Proximity Caves 6580 | -6/Data Miner | Entered Proximity Caves 6743 | -5/Proximity Caves | Discovered new exit (range 9) 6745 | -5/Proximity Caves | Identified exit to Factory 6745 | -5/Proximity Caves | Entered Factory 6745 | -5/Factory | Evolved 2 slots: Propulsion x1, Utility x1 6746 | -5/Factory | Identified exit to Upper Caves 6747 | -5/Factory | Loaded intel: 54 interactive machine locations 6756 | -5/Factory | Central database locked down 6810 | -5/Factory | Spotted B-75 Beast 6889 | -5/Factory | Manually triggered Chute Trap 6889 | -5/Factory | Sucked down chute 6889 | -5/Factory | Entered Waste 6891 | -5/Waste | Spotted C-40 Crusher 6891 | -5/Waste | Spotted C-40 Crusher 6893 | -5/Waste | Spotted C-40 Crusher 6893 | -5/Waste | Spotted C-40 Crusher 6903 | -5/Waste | Spotted C-40 Crusher 6903 | -5/Waste | Spotted C-40 Crusher 6906 | -5/Waste | Discovered new exit (range 22) 6909 | -5/Waste | Warlord forces began an assault 6909 | -5/Waste | Found Broken Fusion Bomb Launcher 6942 | -5/Waste | Identified exit to Factory 6942 | -5/Waste | Entered Factory 6965 | -5/Factory | Lost 5 allies 6981 | -5/Factory | Found Prototype Launcher 6981 | -5/Factory | Identified Smartbomb Launcher 6998 | -5/Factory | Found Smartbomb Launcher 7070 | -5/Factory | Build established: Hacker-Scout 7155 | -5/Factory | Fabricated Jamming Amplifier (x2) 7167 | -5/Factory | Discovered new exit (range 20) 7168 | -5/Factory | Watched by a mysterious "MATRIX" hacker. 7215 | -5/Factory | Central database locked down 7349 | -5/Factory | Entered Upper Caves 7349 | -5/Upper Caves | Accompanied by 1 ally 7354 | -5/Upper Caves | Identified exit to Upper Caves 7378 | -5/Upper Caves | Attracted the attention of an 0b10 checkpoint 7511 | -5/Upper Caves | Learned Factory stockpile data 7520 | -5/Upper Caves | Entered another Upper Caves area 7520 | -5/Upper Caves | Discovered new exit (range 20) 7589 | -5/Upper Caves | Attracted the attention of an 0b10 outpost 7601 | -5/Upper Caves | Learned Factory stockpile data 7626 | -5/Upper Caves | Learned Factory stockpile data 7634 | -5/Upper Caves | Discovered new exit (range 9) 7636 | -5/Upper Caves | Identified exit to Warlord 7637 | -5/Upper Caves | Entered Warlord 7646 | -5/Warlord | System corruption cleaned by Quarantine Array 7740 | -5/Warlord | Visited the Vortex Lab 7742 | -5/Warlord | Found Prototype Energy Gun 7742 | -5/Warlord | Identified Vortex Shotgun 7760 | -5/Warlord | Warlord's base attacked by MAIN.C 7780 | -5/Warlord | Opened Warlord's prototype stash 7793 | -5/Warlord | Found Prototype Processor 7793 | -5/Warlord | Identified Exp. Targeting Computer 7826 | -5/Warlord | Build established: Hacker-Sprinter 8060 | -5/Warlord | Warlord forces counterattacked 8074 | -5/Warlord | Spotted B-86 Titan 8075 | -5/Warlord | Spotted B-75 Beast 8076 | -5/Warlord | Spotted Striker 8088 | -5/Warlord | Destroyed Striker 8113 | -5/Warlord | Discovered new exit (range 12) 8115 | -5/Warlord | Identified exit to Proximity Caves 8115 | -5/Warlord | Entered Proximity Caves 8146 | -4/Proximity Caves | Destroyed 17 combat bots 8165 | -4/Proximity Caves | Learned Research stockpile data 8197 | -4/Proximity Caves | Discovered new exit (range 8) 8198 | -4/Proximity Caves | Identified exit to Factory 8198 | -4/Proximity Caves | Entered Factory 8198 | -4/Factory | Evolved 2 slots: Utility x2 8435 | -4/Factory | Spotted B-86 Titan 8526 | -4/Factory | Sucked down chute 8526 | -4/Factory | Entered Waste 8527 | -4/Waste | Met a frightened Derelict 8529 | -4/Waste | Spotted C-40 Crusher 8546 | -4/Waste | Spotted C-40 Crusher 8547 | -4/Waste | Spotted C-40 Crusher 8555 | -4/Waste | Spotted C-40 Crusher 8557 | -4/Waste | Spotted C-40 Crusher 8557 | -4/Waste | Spotted C-40 Crusher 8563 | -4/Waste | Discovered new exit (range 13) 8565 | -4/Waste | Found Prototype Device 8565 | -4/Waste | Identified Exp. Focal Shield 8569 | -4/Waste | Identified exit to Factory 8569 | -4/Waste | Entered Factory 8575 | -4/Factory | Identified exit to Upper Caves 8575 | -4/Factory | Identified exit to Armory 8590 | -4/Factory | Allied Derelicts emerged from ambush trap array 8722 | -4/Factory | Fabricated Cld. Impulse Thruster (x1) 8776 | -4/Factory | Repaired Mic. Antimatter Reactor 8779 | -4/Factory | Allied Derelicts emerged from ambush trap array 8821 | -4/Factory | Repaired Smartbomb Launcher 8859 | -4/Factory | Discovered new exit (range 8) 8969 | -4/Factory | Entered Upper Caves 8979 | -4/Upper Caves | Attracted the attention of an 0b10 checkpoint 9033 | -4/Upper Caves | Discovered new exit (range 5) 9034 | -4/Upper Caves | Identified exit to Upper Caves 9043 | -4/Upper Caves | Found DCF Scrap (14 items) 9057 | -4/Upper Caves | Entered another Upper Caves area 9067 | -4/Upper Caves | Build established: Hacker-Scout 9127 | -4/Upper Caves | Identified exit to Research 9163 | -4/Upper Caves | Found Alien Artifact 9163 | -4/Upper Caves | Identified Core Expander 9163 | -4/Upper Caves | Installed Core Expander, added new Power slot 9195 | -4/Upper Caves | Discovered new exit (range 12) 9198 | -4/Upper Caves | Identified exit to Zhirov 9198 | -4/Upper Caves | Entered Zhirov 9198 | -4/Zhirov | Discovered new exit (range 3) 9203 | -4/Zhirov | Met Zhirov 9209 | -4/Zhirov | Zhirov requested help retrieving the SGEMP Prototype 9213 | -4/Zhirov | Found Alien Artifact 9213 | -4/Zhirov | Identified Integrated Reactor 9213 | -4/Zhirov | Installed Integrated Reactor, increased core energy generation (+10) 9219 | -4/Zhirov | Found Alien Artifact 9264 | -4/Zhirov | Identified exit to Proximity Caves 9265 | -4/Zhirov | Entered Proximity Caves 9271 | -3/Proximity Caves | Found DCF Scrap (14 items) 9272 | -3/Proximity Caves | Unaware initiated a cargo recovery operation 9383 | -3/Proximity Caves | Found Prototype Device 9383 | -3/Proximity Caves | Identified Exp. Shield Generator 9476 | -3/Proximity Caves | Build established: Hacker-Ninja 9486 | -3/Proximity Caves | Discovered exit to Research (range 14) 9489 | -3/Proximity Caves | Entered Research 9489 | -3/Research | Evolved 2 slots: Utility x2 9530 | -3/Research | Fabricated Graphene Brace (x2) 9710 | -3/Research | Identified exit to Testing 9814 | -3/Research | Entered Testing 9848 | -3/Testing | Found Prototype Device 9848 | -3/Testing | Identified AEGIS Remote Shield 9869 | -3/Testing | Fabricated Enh. Nova Cannon? 9878 | -3/Testing | Found Prototype Device 9878 | -3/Testing | Identified 2N-1CE's Frost Array 9888 | -3/Testing | Found Spectral Analyzer 9891 | -3/Testing | Found Exp. Melee Analysis Suite 9898 | -3/Testing | Spotted Striker 9898 | -3/Testing | Spotted Striker 9900 | -3/Testing | Assimilated Striker with FLK Orb 9906 | -3/Testing | Assimilated Striker with FLK Orb 9921 | -3/Testing | Spotted Alpha 7 9922 | -3/Testing | Stole the SGEMP Prototype 10011 | -3/Testing | Discovered new exit (range 4) 10025 | -3/Testing | Found Prototype Energy Cannon 10025 | -3/Testing | Identified Potential Cannon 10125 | -3/Testing | Protovariant out of control (PG-4M81G4M0E5) 10180 | -3/Testing | Repaired Adv. Cloaking Device 10221 | -3/Testing | Identified exit to Research 10221 | -3/Testing | Entered Research 10221 | -2/Research | Evolved 2 slots: Utility x2 10233 | -2/Research | Identified exit to Quarantine 10409 | -2/Research | Identified Transdimensional Reconstructor 10409 | -2/Research | Warped through subspace 10483 | -2/Research | Discovered new exit (range 16) 10488 | -2/Research | Spotted B-90 Cyclops 10497 | -2/Research | Entered Quarantine 10515 | -2/Quarantine | Targeted by mysterious "MATRIX" hacker. 10540 | -2/Quarantine | Found Alien Artifact 10540 | -2/Quarantine | Identified Phase Redirector 10559 | -2/Quarantine | Found Alien Slashing Weapon 10559 | -2/Quarantine | Identified Sigix Broadsword 10776 | -2/Quarantine | Spotted Fortress 10793 | -2/Quarantine | Discovered new exit (range 5) 10793 | -2/Quarantine | Discovered new exit (range 6) 10793 | -2/Quarantine | Identified exit to Protoforge 10794 | -2/Quarantine | Entered Protoforge 10838 | -2/Protoforge | Spotted Hotshot 10957 | -2/Protoforge | Discovered new exit (range 12) 11002 | -2/Protoforge | Spotted Hotshot 11002 | -2/Protoforge | Spotted Hotshot 11002 | -2/Protoforge | Spotted Hotshot 11028 | -2/Protoforge | Destroyed Hotshot 11030 | -2/Protoforge | Destroyed Hotshot 11033 | -2/Protoforge | Destroyed Hotshot 11038 | -2/Protoforge | Spotted Hotshot 11038 | -2/Protoforge | Spotted Hotshot 11040 | -2/Protoforge | Spotted Hotshot 11046 | -2/Protoforge | Spotted Hotshot 11053 | -2/Protoforge | Spotted Hotshot 11067 | -2/Protoforge | Spotted Hotshot 11067 | -2/Protoforge | Spotted Hotshot 11067 | -2/Protoforge | Spotted Hotshot 11112 | -2/Protoforge | Spotted B-90 Cyclops 11124 | -2/Protoforge | Spotted AP7-3 11171 | -2/Protoforge | Found Prototype Storage 11171 | -2/Protoforge | Identified Cep. NT7 Matterbank 11185 | -2/Protoforge | Found Prototype Device 11238 | -2/Protoforge | Found Prototype Device 11239 | -2/Protoforge | Identified Crosscalibrator 11242 | -2/Protoforge | Spotted Immortal 11242 | -2/Protoforge | Spotted Immortal 11246 | -2/Protoforge | Destroyed Decapitator 11248 | -2/Protoforge | Spotted Decapitator 11248 | -2/Protoforge | Spotted Decapitator 11248 | -2/Protoforge | Spotted Decapitator 11253 | -2/Protoforge | Destroyed Decapitator 11253 | -2/Protoforge | Destroyed Decapitator 11253 | -2/Protoforge | Destroyed Decapitator 11326 | -2/Protoforge | Found Cep. Fieldthrust Drive 11467 | -2/Protoforge | Superfortress began startup sequence 11615 | -2/Protoforge | Forge Plexus network access discovered 11635 | -2/Protoforge | Found Cep. Antigrav Storage Unit 11685 | -2/Protoforge | Destroyed Immortal 11693 | -2/Protoforge | Found Corrupted Cep. Antimissile System 11749 | -2/Protoforge | Destroyed Immortal 11766 | -2/Protoforge | Found Cep. Gyrokinetic System 11775 | -2/Protoforge | Found Faulty Cep. Gyrokinetic System 11779 | -2/Protoforge | Found Faulty Cep. Gyrokinetic System 11791 | -2/Protoforge | Found Cep. Combat Aerolev Unit 11793 | -2/Protoforge | Found Cep. Combat Aerolev Unit 11796 | -2/Protoforge | Found Faulty Cep. Combat Aerolev Unit 11882 | -2/Protoforge | Found Cep. NT7 Matterbank 11885 | -2/Protoforge | Found Cep. Matter Streamer 11922 | -2/Protoforge | Found Cep. Rapid Grenade Launcher 11943 | -2/Protoforge | Spotted Decapitator 11943 | -2/Protoforge | Spotted Decapitator 11946 | -2/Protoforge | Spotted Decapitator 11962 | -2/Protoforge | Found Femtoactuators 11965 | -2/Protoforge | Found Cep. Recoil Nullifier 11992 | -2/Protoforge | Found Cep. Countertargeting System 11995 | -2/Protoforge | Found Cep. Hypertargeting System 12000 | -2/Protoforge | Found Exp. Kinecellerator 12034 | -2/Protoforge | Spotted Decapitator 12034 | -2/Protoforge | Spotted Decapitator 12034 | -2/Protoforge | Spotted Decapitator 12034 | -2/Protoforge | Spotted Decapitator 12049 | -2/Protoforge | Spotted Immortal 12054 | -2/Protoforge | Spotted Immortal 12094 | -2/Protoforge | Destroyed Immortal 12138 | -2/Protoforge | Destroyed Immortal 12155 | -2/Protoforge | Spotted V529-y 12155 | -2/Protoforge | Spotted V361-u 12224 | -2/Protoforge | Spotted V819-m 12227 | -2/Protoforge | Found Cep. XC Strikerail 12229 | -2/Protoforge | Found Faulty Cep. Heavy Railcannon 12231 | -2/Protoforge | Found Cep. XC Strikerail 12232 | -2/Protoforge | Found Faulty Cep. XC Strikerail 12259 | -2/Protoforge | Spotted V575-m 12259 | -2/Protoforge | Found Faulty Cep. Helical Railcannon 12261 | -2/Protoforge | Found Faulty Cep. Heavy Railcannon 12264 | -2/Protoforge | Found Cep. Miniperforator 12268 | -2/Protoforge | Destroyed V575-m 12273 | -2/Protoforge | Found Prototype Device 12274 | -2/Protoforge | Identified Exp. Weapon Cycler 12278 | -2/Protoforge | Found Faulty Cep. Miniperforator 12283 | -2/Protoforge | Found Faulty Cep. XC Strikerail 12285 | -2/Protoforge | Found Cep. Helical Railcannon 12289 | -2/Protoforge | Found Faulty Cep. Helical Railcannon 12294 | -2/Protoforge | First assault squad dispatched 12369 | -2/Protoforge | Found Cep. Zero-point Core 12448 | -2/Protoforge | Destroyed Decapitator 12448 | -2/Protoforge | Destroyed Decapitator 12448 | -2/Protoforge | Scanned by Researcher 12449 | -2/Protoforge | Destroyed Decapitator 12449 | -2/Protoforge | Destroyed Decapitator 12470 | -2/Protoforge | Destroyed 8 combat bots 12471 | -2/Protoforge | Found Exp. Active Sensor Suite 12475 | -2/Protoforge | Spotted V638-s 12496 | -2/Protoforge | Destroyed V638-s 12501 | -2/Protoforge | Found Cep. Network Penetrator 12536 | -2/Protoforge | Spotted V569-z 12540 | -2/Protoforge | Spotted V368-t 12541 | -2/Protoforge | Destroyed V368-t 12543 | -2/Protoforge | Spotted V630-r 12574 | -2/Protoforge | Destroyed V630-r 12591 | -2/Protoforge | Destroyed V569-z 12604 | -2/Protoforge | Lost 3 parts (1n2u) 12619 | -2/Protoforge | Found Cep. RG22 Armor 12625 | -2/Protoforge | Found Exp. Remote Shield 12632 | -2/Protoforge | Found Faulty Cep. RG22 Armor 12706 | -2/Protoforge | Incoming investigation squad redirected 12847 | -2/Protoforge | Build established: Skirmisher 12854 | -2/Protoforge | Found Faulty Cep. Zero-point Core 13105 | -2/Protoforge | Found Cep. Weapon Articulator 13216 | -2/Protoforge | Found Cep. Weapon Articulator 13376 | -2/Protoforge | Destroyed 7 combat bots 13428 | -2/Protoforge | Identified exit to Access 13429 | -2/Protoforge | Entered Access 13429 | -1/Access | Evolved 2 slots: Weapon x2 13430 | -1/Access | Delivered the SGEMP Prototype to Zhirov 13430 | -1/Access | Zhirov transferred Access data 13431 | -1/Access | Loaded intel: 116 machine locations 13431 | -1/Access | Loaded intel: 82 trap records 13431 | -1/Access | Identified exit to Surface 13431 | -1/Access | Discovered exit to Surface (range 110) 13431 | -1/Access | Identified exit to Command 13431 | -1/Access | Discovered exit to Command (range 200) 13498 | -1/Access | Garrison activated, responded to threat 13516 | -1/Access | Zhirov warped through subspace 13531 | -1/Access | Found Prototype Processor 13531 | -1/Access | Identified Exp. Core Analyzer 13622 | -1/Access | Unchained authorized (GL-D0S) 13690 | -1/Access | Build established: Gunner 13836 | -1/Access | Spotted B-99 Colossus 13840 | -1/Access | Lost 3 parts (1u2w) 13957 | -1/Access | Entered Command 14207 | -1/Command | First assault squad dispatched 14254 | -1/Command | Spotted M Guard 14254 | -1/Command | Spotted Combat Programmer 14257 | -1/Command | Spotted M Guard 14257 | -1/Command | Spotted Combat Programmer 14275 | -1/Command | Destroyed Combat Programmer 14277 | -1/Command | Destroyed Combat Programmer 14322 | -1/Command | Destroyed 7 combat bots 14349 | -1/Command | Destroyed M Guard 14351 | -1/Command | Lost 5 parts (1u4w) 14359 | -1/Command | Build established: Hacker-Gunner 14378 | -1/Command | Destroyed M Guard 14378 | -1/Command | All MAIN.C guards destroyed 14476 | -1/Command | Incoming assault squad redirected 14727 | -1/Command | Incoming assault squad redirected 14798 | -1/Command | Met MAIN.C 14814 | -1/Command | 0b10 Conduit disabled 14835 | -1/Command | Destroyed MAIN.C Shell 14837 | -1/Command | MAIN.C activated Command garrisons 14841 | -1/Command | Zhirov arrived to use SGEMP to disable MAIN.C 14863 | -1/Command | Lost 5 parts (2u3w) 14912 | -1/Command | Discovered exit to Surface (range 58) 14912 | -1/Command | Discovered exit to Surface (range 94) 14912 | -1/Command | Extracted map data and part IDs from MAIN.C's data core 15137 | -1/Command | Found Exp. Core Analyzer 15147 | -1/Command | Found Adv. Kinecellerator 15160 | -1/Command | Found Exp. Core Analyzer 15164 | -1/Command | Found Exp. Targeting Computer 15782 | *** | Escaped! Last Messages --------------- 15421_ Acquired 35 matter. 15423_ Acquired 37 matter. 15424_ Acquired 34 matter. 15475_ Acquired Adv. Shield Generator. 15479_ 2SJ1YE8BUAHY#XD7AB WFKH%EQY2IDN 15495_ System corrupted: Component data lost. 15526_ System corrupted: Heat flow error (+173). 15548_ System corrupted: Heat flow error (+222). 15556_ Wave Inhibitor disabled. 15556_ Slug penetrates Wave Inhibitor. 15556_ Railslug penetrates Wave Inhibitor. 15581_ System corrupted: Energy discharge (-516). 15609_ System corrupted: Heat flow error (+295). 15663_ 6%O4CJ#WMYPMO4M:CCKJ=QZDG&GR3N9<76H 15748_ System corrupted: FCS attempts to trigger KE Penetrator. 15748_ System corrupted: KE Penetrator misfires. 15748_ Slug penetrates W-44 Eye. 15769_ System corrupted: Component data lost. Map ----- +----------------------------------------------------+ | "" # ^ !]##########""" #######?????#?# | | " # #""" # ######### | | + # # | | # # + " | | # ^ #!!! # | | ###### """" ##!!! # ######### | | ###### """" ##!! ## ##?????#?# | | """" ## ## #??????#?# | | """" ## ## #??????#?# | | + ## #??????#?? | | ## ## #??????### | | ## ## #????????? | | ###################### #####+##### #????????? | | ## """T""" # ## # #????????? | | ## """ """ # ## # #????????? | | ## # ###### # #????????? | | ## # #????# # #????????? | | ## = # #????# # #????????? | | ## # #????# # #????????? | | ## # #????# # #????????? | | ########+####### #????######+### ##???????? | | !!! #?????????# #???????? | | !!^ #?????????# #???????? | | ######## !!! #######???# #???????? | | ## # ## #???# #???????? | | ## # ^ ## @ #???# #???????? | | ## # ^ ^ ## #???######+#####?????? | | ## # ^"" #### #?????# #?????? | | ##! # ^ """ #### #?????# #?????? | | ## # """ #?????# #?????? | | ## # "" ##????# "" #?????? | | ####+### [;###### """" #?????? | | #?# "" [ =* + """" #?????? | | #?# s####### "" #?????? | | #?# ### ##########+####+######## #?????? | | #?## ##?# ## + + #?????? | | #### ######## ##########+##?????? | | + """" """" #????????# #??????? | | # """" """" #????????# #??????? | | # """" """" ########## #??????? | | + """" """" + #??????? | | ## ############??????? | | ## ! #?????????????????? | | ####### #####################?????????????????? | | ??????# #?????????????????????????????????????? | | ??????# #?????????????????????????????????????? | | ??????# #?????????????????????????????????????? | | ??????######?????????????????????????????????????? | | ?????????????????????????????????????????????????? | | ?????????????????????????????????????????????????? | +----------------------------------------------------+ Best States ------------- Heat Dissipation 152 Coolant Potential 100 Energy Generation 58 Energy Capacity 1520 Matter Stores 1050 Matter Capacity 1050 Sight Range 24 Robot Scan Range 20 Terrain Scan Density 10 Jamming Range 16 Cloak Strength 4 Armor Coverage 300 Resistance: KI 30 Propulsion Shielding 33 Utility Shielding 90 Point Defense Rating 480 Weapon Cycling 30 Melee Speed Boost 50 Evasion (%) 78 Targeting Accuracy 42 Melee Accuracy 12 Core Analysis 12 Armor Integrity Analysis 40 Recoil Reduction 99 Kinecelleration 66 Offensive Hacking 50 Defensive Hacking 14 Authchip Count 2 Item Schematics ----------------- Jamming Amplifier | -6/Factory | Hacked Weapon Mount | -6/Factory | Hacked Combat Drone Bay | -6/Data Miner | Free Lgt. Regenerative Plating | -6/Data Miner | Free Cld. Gravmag System | -6/Data Miner | Free Imp. Energy Well | -6/Data Miner | Free Enh. Coil Gun | -6/Data Miner | Free Myomer Leg | -6/Data Miner | Free Graphene Brace | -6/Data Miner | Free Hardcell Cannon | -6/Data Miner | Free Variable Charge Gun | -6/Data Miner | Free Adv. Reaction Control System | -6/Data Miner | Free Imp. System Guard | -6/Data Miner | Free Com. HERF Cannon | -6/Data Miner | Free Biometal Medium Treads | -6/Data Miner | Free Cld. Impulse Thruster | -5/Factory | Hacked Tri-rail Accelerator | -4/Factory | Hacked Assault Drone Bay | -4/Zhirov | Free Exp. Heat Sink | -4/Zhirov | Free Exp. Optical Array | -4/Zhirov | Free Imp. Arc Thrower | -4/Zhirov | Free Adv. Transmission Jammer | -3/Research | Hacked Exp. Reaction Control System | -2/Quarantine | Archive Enh. Armored Heavy Treads | -2/Quarantine | Archive Graviton Cannon | -2/Protoforge | Archive Adv. KE Penetrator | -2/Protoforge | Archive Hvy. Neutron Cannon | -2/Protoforge | Archive Tesla Bomb Launcher | -2/Protoforge | Archive Imp. Diametric Drive | -2/Protoforge | Archive Gravity Neutralizer | -2/Protoforge | Archive Adv. Variable Charge Gun | -2/Protoforge | Archive Robot Schematics ------------------ S-27 Virus | -6/Data Miner | Free G-50 Soldier | -6/Data Miner | Free M-22 Extractor | -6/Data Miner | Free L-61 Swordsman | -6/Data Miner | Free O-32 Director | -6/Data Miner | Free Fabricated ------------ Jamming Amplifier | x2 | -5/Factory | Authchip Cld. Impulse Thruster | x1 | -4/Factory | Authchip Graphene Brace | x2 | -3/Research | Authchip Enh. Nova Cannon | x2 | -3/Testing | Preloaded, Authchip Repaired ---------- Imp. Assault Rifle | 99% | -8/Materials | Broken Rocket Launcher | 62% | -6/Factory Imp. Cooling System | 65% | -6/Factory Mic. Antimatter Reactor | 25% | -4/Factory Smartbomb Launcher | 73% | -4/Factory Adv. Cloaking Device | 18% | -3/Testing Studied --------- Com. Wheel | -8/Materials | Hacked Rocket Launcher | -5/Factory | Hacked Power Sword | -5/Factory | Hacked Mic. Antimatter Reactor | -3/Testing | Hacked Alien Tech Used ----------------- Core Expander Integrated Reactor Transdimensional Reconstructor Phase Redirector Sigix Broadsword Achievements -------------- Express Service Inventory(Loot) Perfect Aim Sorry Old Pal Special Delivery Challenges ------------ None Game ------ Seed WarlordBackupPenetrator Manual? 0 Play Time 06:42:58 Cumulative 251.0 hours Start 2026.04.29 @ 21:28:32 End 2026.04.30 @ 05:21:49 Sessions 3 Manual Loads 0 Difficulty Rogue Special Mode None Game No. 135 Rogue 135 Adventurer 0 Explorer 0 Win Type 0 Total 9 Types 5/0/2/1/0/0/0/1/0/0 Lore% 72 Gallery% 65 Achievement% 57 Wizard Run 0 Options --------- Layout 2 ASCII 0 Keyboard 1 Movement Arrows Keybinds 0 Fullscreen 2 Font 24/Terminus Map View 50x44 Zoom Use 0% Tactical HUD 1 Map Filters NONE Filters NONE Steam 1 RUN: 8a4408fa-8f99-4445-b142-360caaf1a33b